Workbook

Sheet FT-R Transfers (Freq & Vol)
A1: FT-R Transfer Summary - Frequency
A2: Total | G2: Peace River (PR) | L2: Mainline (ML) | Q2: North & East (NE)
A3: Month | B3: Approved (Manual) | C3: Approved (ATP) | D3: Denied | E3: Cancelled | F3: Total | G3: Approved (Manual) | H3: Approved (ATP) | I3: Denied | J3: Cancelled | K3: Total | L3: Approved (Manual) | M3: Approved (ATP) | N3: Denied | O3: Cancelled | P3: Total | Q3: Approved (Manual) | R3: Approved (ATP) | S3: Denied | T3: Cancelled | U3: Total
A4: 2024-09-22 | B4: =ROUND(SUM(G4,L4,Q4),0) -> 746 | C4: =ROUND(SUM(H4,M4,R4),0) -> 946 | D4: =ROUND(SUM(I4,N4,S4),0) -> 64 | E4: =ROUND(SUM(J4,O4,T4),0) -> 45 | F4: =ROUND(SUM(K4,P4,U4),0) -> 1801 | G4: 485 | H4: 720 | I4: 63 | J4: =19+7 -> 26 | K4: =SUM(G4:J4) -> 1294 | L4: 217 | M4: 180 | N4: 0 | O4: 6 | P4: =SUM(L4:O4) -> 403 | Q4: 44 | R4: 46 | S4: 1 | T4: 13 | U4: =SUM(Q4:T4) -> 104
A5: 2024-10-22 | B5: 654 | C5: 1163 | D5: 55 | E5: 52 | F5: 1924 | G5: 467 | H5: 907 | I5: 54 | J5: =49 -> 49 | K5: 1477 | L5: 148 | M5: 183 | N5: 0 | O5: 3 | P5: 334 | Q5: 39 | R5: 73 | S5: 1 | T5: 0 | U5: 113
A6: 2024-11-22 | B6: 797 | C6: 1120 | D6: 50 | E6: 43 | F6: 2010 | G6: 513 | H6: 848 | I6: 50 | J6: =34 -> 34 | K6: 1445 | L6: 206 | M6: 203 | N6: 0 | O6: 9 | P6: 418 | Q6: 78 | R6: 69 | S6: 0 | T6: 0 | U6: 147
A7: 2024-12-22 | B7: 560 | C7: 1171 | D7: 51 | E7: 4 | F7: 1786 | G7: 327 | H7: 855 | I7: 46 | J7: =4 -> 4 | K7: 1232 | L7: 200 | M7: 237 | N7: 5 | O7: 0 | P7: 442 | Q7: 33 | R7: 79 | S7: 0 | T7: 0 | U7: 112
A8: 2025-01-22 | B8: 811 | C8: 1383 | D8: 106 | E8: 70 | F8: 2370 | G8: 505 | H8: 1069 | I8: 102 | J8: 56 | K8: 1732 | L8: 259 | M8: 227 | N8: 0 | O8: 7 | P8: 493 | Q8: 47 | R8: 87 | S8: 4 | T8: 7 | U8: 145
A9: 2025-02-22 | B9: 775 | C9: 1209 | D9: 113 | E9: 48 | F9: 2145 | G9: 536 | H9: 998 | I9: 91 | J9: 33 | K9: 1658 | L9: 192 | M9: 172 | N9: 22 | O9: 10 | P9: 396 | Q9: 47 | R9: 39 | S9: 0 | T9: 5 | U9: 91
A10: 2025-03-22 | B10: 765 | C10: 1452 | D10: 175 | E10: 32 | F10: 2424 | G10: 513 | H10: 1266 | I10: 170 | J10: 32 | K10: 1981 | L10: 192 | M10: 150 | N10: 3 | O10: 0 | P10: 345 | Q10: 60 | R10: 36 | S10: 2 | T10: 0 | U10: 98
A11: 2025-04-22 | B11: =ROUND(SUM(G11,L11,Q11),0) -> 650 | C11: =ROUND(SUM(H11,M11,R11),0) -> 1248 | D11: 85 | E11: 50 | F11: 2033 | G11: 450 | H11: 1044 | I11: 85 | J11: 46 | K11: =SUM(G11:J11) -> 1625 | L11: 160 | M11: 157 | N11: 0 | O11: 4 | P11: =SUM(L11:O11) -> 321 | Q11: 40 | R11: 47 | S11: 0 | T11: 0 | U11: =SUM(Q11:T11) -> 87
A12: 2025-05-22 | B12: 645 | C12: 1258 | D12: 72 | E12: 68 | F12: 2043 | G12: 515 | H12: 1049 | I12: 71 | J12: 61 | K12: 1696 | L12: 85 | M12: 170 | N12: 1 | O12: 2 | P12: 258 | Q12: 45 | R12: 39 | S12: 0 | T12: 5 | U12: 89
A13: 2025-06-22 | B13: 762 | C13: 1321 | D13: 65 | E13: 32 | F13: 2180 | G13: 499 | H13: 1102 | I13: 58 | J13: 29 | K13: 1688 | L13: 200 | M13: 196 | N13: 7 | O13: 3 | P13: 406 | Q13: 63 | R13: 23 | S13: 0 | T13: 0 | U13: 86
A14: 2025-07-22 | B14: =ROUND(SUM(G14,L14,Q14),0) -> 709 | C14: =ROUND(SUM(H14,M14,R14),0) -> 1189 | D14: =ROUND(SUM(I14,N14,S14),0) -> 85 | E14: =ROUND(SUM(J14,O14,T14),0) -> 36 | F14: =ROUND(SUM(K14,P14,U14),0) -> 2019 | G14: 502 | H14: 965 | I14: 78 | J14: 21 | K14: =SUM(G14:J14) -> 1566 | L14: 172 | M14: 159 | N14: 5 | O14: 15 | P14: =SUM(L14:O14) -> 351 | Q14: 35 | R14: 65 | S14: 2 | T14: 0 | U14: =SUM(Q14:T14) -> 102
A15: 2025-08-22 | B15: 670 | C15: 1160 | D15: 59 | E15: 36 | F15: 1925 | G15: 511 | H15: 937 | I15: 51 | J15: 36 | K15: 1535 | L15: 113 | M15: 190 | N15: 8 | O15: 0 | P15: 311 | Q15: 46 | R15: 33 | S15: 0 | T15: 0 | U15: 79
A16: 2025-09-22 | B16: =ROUND(SUM(G16,L16,Q16),0) -> 745 | C16: =ROUND(SUM(H16,M16,R16),0) -> 1039 | D16: =ROUND(SUM(I16,N16,S16),0) -> 50 | E16: =ROUND(SUM(J16,O16,T16),0) -> 33 | F16: =ROUND(SUM(K16,P16,U16),0) -> 1867 | G16: 473 | H16: 826 | I16: 44 | J16: 29 | K16: =SUM(G16:J16) -> 1372 | L16: 239 | M16: 164 | N16: 6 | O16: 4 | P16: =SUM(L16:O16) -> 413 | Q16: 33 | R16: 49 | S16: 0 | T16: 0 | U16: =SUM(Q16:T16) -> 82
A18: FT-R Transfer Summary - Volume (103m3/d)
A19: Total | G19: Peace River (PR) | L19: Mainline (ML) | Q19: North & East (NE)
A20: Month | B20: Approved (Manual) | C20: Approved (ATP) | D20: Denied | E20: Cancelled | F20: Total | G20: Approved (Manual) | H20: Approved (ATP) | I20: Denied | J20: Cancelled | K20: Total | L20: Approved (Manual) | M20: Approved (ATP) | N20: Denied | O20: Cancelled | P20: Total | Q20: Approved (Manual) | R20: Approved (ATP) | S20: Denied | T20: Cancelled | U20: Total
A21: 2024-09-22 | B21: =SUM(ROUND(G21,0),ROUND(L21,0),ROUND(Q21,0)) -> 93240 | C21: =SUM(ROUND(H21,0),ROUND(M21,0),ROUND(R21,0)) -> 128361 | D21: =SUM(ROUND(I21,0),ROUND(N21,0),ROUND(S21,0)) -> 13332 | E21: =SUM(ROUND(J21,0),ROUND(O21,0),ROUND(T21,0)) -> 7851 | F21: =SUM(B21:E21) -> 242784 | G21: 89707.2 | H21: 123672.7 | I21: 13332.2 | J21: =5409.3+1929.8 -> 7339.1 | K21: =SUM(G21:J21) -> 234051.2 | L21: 2981.7 | M21: 3865.3 | N21: 0 | O21: =389.7 -> 389.7 | P21: =SUM(L21:O21) -> 7236.7 | Q21: 550.8 | R21: 823.2 | S21: 0.3 | T21: 122 | U21: =SUM(Q21:T21) -> 1496.3
A22: 2024-10-22 | B22: 104989 | C22: 140453 | D22: 7392 | E22: 13365 | F22: 266199 | G22: 102389 | H22: 136571 | I22: 7390 | J22: =11535.4+1368.2 -> 12903.6 | K22: 259253.6 | L22: 2201 | M22: 2929 | N22: 0 | O22: =415+46 -> 461 | P22: =SUM(L22:O22) -> 5591 | Q22: 399 | R22: 953 | S22: 2 | T22: 0 | U22: =SUM(Q22:T22) -> 1354
A23: 2024-11-22 | B23: 71043 | C23: 132505 | D23: 6457 | E23: 7829 | F23: 217834 | G23: 67529 | H23: 129115 | I23: 6457 | J23: =4984+2672 -> 7656 | K23: 210757 | L23: 2681 | M23: 2985 | N23: 0 | O23: =173 -> 173 | P23: =SUM(L23:O23) -> 5839 | Q23: 833 | R23: 405 | S23: 0 | T23: 0 | U23: 1238
A24: 2024-12-22 | B24: 51855 | C24: 128738 | D24: 6023 | E24: 688 | F24: 187304 | G24: 49947 | H24: 124540 | I24: 5957 | J24: 688 | K24: 181132 | L24: 1599 | M24: 3594 | N24: 66 | O24: 0 | P24: 5259 | Q24: 309 | R24: 604 | S24: 0 | T24: 0 | U24: 913
A25: 2025-01-22 | B25: 102438 | C25: 148036 | D25: 19760 | E25: 17963 | F25: 288197 | G25: 99269 | H25: 143367 | I25: 19734 | J25: =16261+1652 -> 17913 | K25: 280283 | L25: 2596 | M25: 3455 | N25: 0 | O25: 10 | P25: 6061 | Q25: 573 | R25: 1214 | S25: 26 | T25: 40 | U25: 1853
A26: 2025-02-22 | B26: 119572 | C26: 172460 | D26: 14989 | E26: 13881 | F26: 320902 | G26: 112432 | H26: 167169 | I26: 14317 | J26: =10509+3212 -> 13721 | K26: 307639 | L26: 6659 | M26: 4613 | N26: 672 | O26: 103 | P26: 12047 | Q26: 481 | R26: 678 | S26: 0 | T26: 57 | U26: 1216
A27: 2025-03-22 | B27: 69698 | C27: 244083 | D27: 2743 | E27: 12245 | F27: 328769 | G27: 68058 | H27: 239714 | I27: 2711 | J27: =12029+216 -> 12245 | K27: 322728 | L27: 1282 | M27: 3849 | N27: 27 | O27: 0 | P27: =SUM(L27:O27) -> 5158 | Q27: 358 | R27: 520 | S27: 5 | T27: 0 | U27: =SUM(Q27:T27) -> 883
A28: 2025-04-22 | B28: =SUM(ROUND(G28,0),ROUND(L28,0),ROUND(Q28,0)) -> 98756 | C28: 157133 | D28: 9858 | E28: =SUM(ROUND(J28,0),ROUND(O28,0),ROUND(T28,0)) -> 8242 | F28: =SUM(B28:E28) -> 273989 | G28: 96328 | H28: 153212 | I28: 9831 | J28: =7515+641 -> 8156 | K28: =SUM(G28:J28) -> 267527 | L28: 2132 | M28: 3396 | N28: 27 | O28: 86 | P28: =SUM(L28:O28) -> 5641 | Q28: 296 | R28: 525 | S28: 0 | T28: 0 | U28: =SUM(Q28:T28) -> 821
A29: 2025-05-22 | B29: =SUM(ROUND(G29,0),ROUND(L29,0),ROUND(Q29,0)) -> 91186 | C29: 187106 | D29: 7899 | E29: 12794 | F29: 298985 | G29: 90220 | H29: 179523 | I29: 7859 | J29: =7270+5489 -> 12759 | K29: 290361 | L29: 707 | M29: 7173 | N29: 40 | O29: 13 | P29: 7933 | Q29: 259 | R29: 410 | S29: 0 | T29: 22 | U29: 691
A30: 2025-06-22 | B30: =SUM(ROUND(G30,0),ROUND(L30,0),ROUND(Q30,0)) -> 148214 | C30: 235078 | D30: 21482 | E30: 15839 | F30: 420613 | G30: 145424.9 | H30: 229435.5 | I30: 21156.8 | J30: 15830 | K30: 411847.2 | L30: 2558.1 | M30: 5405.2 | N30: 325 | O30: 9 | P30: 8297.3 | Q30: 230.5 | R30: 237.4 | S30: 0 | T30: 0 | U30: 467.9
A31: 2025-07-22 | B31: =SUM(ROUND(G31,0),ROUND(L31,0),ROUND(Q31,0)) -> 198146 | C31: =SUM(ROUND(H31,0),ROUND(M31,0),ROUND(R31,0)) -> 203584 | D31: =SUM(ROUND(I31,0),ROUND(N31,0),ROUND(S31,0)) -> 20293 | E31: =SUM(ROUND(J31,0),ROUND(O31,0),ROUND(T31,0)) -> 7264 | F31: =SUM(B31:E31) -> 429287 | G31: 192297.6 | H31: 198284 | I31: 19665.2 | J31: 7218.6 | K31: =SUM(G31:J31) -> 417465.4 | L31: 5622.8 | M31: 4793.4 | N31: 609.9 | O31: 45 | P31: =SUM(L31:O31) -> 11071.1 | Q31: 224.9 | R31: 507.3 | S31: 17.5 | T31: 0 | U31: =SUM(Q31:T31) -> 749.7
A32: 2025-08-22 | B32: =SUM(ROUND(G32,0),ROUND(L32,0),ROUND(Q32,0)) -> 161511 | C32: 177911 | D32: 8578 | E32: 8027 | F32: 356027 | G32: 157745.3 | H32: 172212 | I32: 8027.7 | J32: 8027 | K32: 346012 | L32: 3475.4 | M32: 5247.9 | N32: 549.8 | O32: 0 | P32: 9273.1 | Q32: 291 | R32: 451.2 | S32: 0 | T32: 0 | U32: 742.2
A33: 2025-09-22 | B33: =SUM(ROUND(G33,0),ROUND(L33,0),ROUND(Q33,0)) -> 101825 | C33: =SUM(ROUND(H33,0),ROUND(M33,0),ROUND(R33,0)) -> 177383 | D33: =SUM(ROUND(I33,0),ROUND(N33,0),ROUND(S33,0)) -> 8505 | E33: =SUM(ROUND(J33,0),ROUND(O33,0),ROUND(T33,0)) -> 10835 | F33: =SUM(B33:E33) -> 298548 | G33: 95467.7 | H33: 172324.1 | I33: 8027.7 | J33: 10192.9 | K33: =SUM(G33:J33) -> 286012.4 | L33: 6125.4 | M33: 4525.3 | N33: 477 | O33: 642 | P33: =SUM(L33:O33) -> 11769.7 | Q33: 232.3 | R33: 534 | S33: 0 | T33: 0 | U33: =SUM(Q33:T33) -> 766.3
A36: Cross Boundary Transfers
A37: Month | B37: Frequency | C37: Volume (e3m3/d) | D37: Information
A38: 2024-01-01 | B38: 1 | C38: 50 | D38: Requested out and back FT-R transfer volume from PR to ML was cancelled
A39: 2024-02-01 | B39: 1 | C39: 50 | D39: Requested out and back FT-R transfer volume from PR to ML was cancelled
A40: 2024-03-01 | B40: 1 | C40: 50 | D40: Requested out and back FT-R transfer volume from PR to ML was cancelled
A41: 2024-09-01 | B41: 1 | C41: 0.1 | D41: Requested one-way FT-R transfer volume from ML to NE was approved
A42: 2024-10-01 | B42: 1 | C42: 390 | D42: Requested out and back FT-R transfer volume from PR to ML was cancelled
B43: 1 | C43: 11 | D43: Requested one-way FT-R transfer volume from PR to NE was approved
A44: 2024-11-01 | B44: N/A | C44: N/A | D44: N/A
A45: 2024-12-01 | B45: N/A | C45: N/A | D45: N/A
A46: 2025-01-01 | B46: N/A | C46: N/A | D46: N/A
A47: 2024-02-01 | B47: N/A | C47: N/A | D47: N/A
A48: 2024-03-01 | B48: N/A | C48: N/A | D48: N/A
A49: 2025-04-01 | B49: N/A | C49: N/A | D49: N/A
A50: 2025-05-01 | B50: N/A | C50: N/A | D50: N/A
A51: 2025-06-01 | B51: 1 | C51: 40.5 | D51: Requested out and back FT-R transfer volume from PR to ML was approved
A52: 2025-07-01 | B52: N/A | C52: N/A | D52: N/A
A53: 2025-08-01 | B53: 2 | C53: 5.5 | D53: Requested one-way FT-R transfer volume from ML to NE was approved
A54: 2025-09-01 | B54: 1 | C54: 35 | D54: Requested one-way FT-R transfer volume from PR to ML was approved
A55: Notes:
A56: 1. Values represent the number of transfer requests processed in the specified month, regardless of effective date
A57: 2. Includes all "out and back" and "one-way" transfers
A58: 3. Out and back transfer requests are tallied as a single transaction
A59: 4. Transfers to storage are not included in totals
A60: 5. Transfers that cross a Delivery Design Area boundary are tallied in the area where the "To" location is situated
A61: 6. Cancelled transfer requests are initiated by the requester (customer, marketer etc.)
A62: 7. ATP is the acronym for Automated Transfer Process, requests that meet certain criteria may be approved automatically
A63: 8. Delivery Design Area boundaries are illustrated in the Design Methodology document on Customer Express (see NGTL/Regulatory/Facilities)
A64: http://www.tccustomerexpress.com/docs/ab_regulatory_facilities/Facilities%20Design%20Methodology%20Document%20-%20Revision%20May%2031,%202018_Oct%204.pdf
U68: 1

Sheet FT-D Transfers (Frequency)
A2: FT-D Transfer Summary - Frequency
A3: Total | F3: NW Alberta and NE BC | J3: NE Alberta | N3: Edmonton and Area | R3: SW Alberta | V3: SE Alberta
A4: Month | B4: Approved | C4: Denied | D4: Cancelled | E4: Total | F4: Approved | G4: Denied | H4: Cancelled | I4: Total | J4: Approved | K4: Denied | L4: Cancelled | M4: Total | N4: Approved | O4: Denied | P4: Cancelled | Q4: Total | R4: Approved | S4: Denied | T4: Cancelled | U4: Total | V4: Approved | W4: Denied | X4: Cancelled | Y4: Total
A5: 2024-09-22 | B5: =SUM(F5,J5,N5,R5,V5) -> 62 | C5: =SUM(G5,K5,O5,S5,W5) -> 0 | D5: =SUM(H5,L5,P5,T5,X5) -> 0 | E5: =SUM(B5:D5) -> 62 | F5: =SUM(F22,F39,F56,F78) -> 1 | G5: =SUM(G22,G78) -> 0 | H5: =SUM(H22,H39,H56,H78) -> 0 | I5: =SUM(F5:H5) -> 1 | J5: =SUM(J22,J39,J56,J78) -> 1 | K5: =SUM(K22,K39,K56,K78) -> 0 | L5: =SUM(L22,L39,L56,L78) -> 0 | M5: =SUM(J5:L5) -> 1 | N5: =SUM(N22,N39,N56,N78) -> 1 | O5: =SUM(O22,O39,O56,O78) -> 0 | P5: =SUM(P22,P39,P56,P78) -> 0 | Q5: =SUM(N5:P5) -> 1 | R5: =SUM(R22,R39,R56,R78) -> 0 | S5: =SUM(S22,S39,S56,S78) -> 0 | T5: =SUM(T22,T39,T56,T78) -> 0 | U5: =SUM(R5:T5) -> 0 | V5: =SUM(V22,V39,V56,B95,C95,I95,J95) -> 59 | W5: =SUM(W22,W39,W56,W78,D95,K95) -> 0 | X5: =SUM(X22,X39,X56,X78,E95,L95) -> 0 | Y5: =SUM(V5:X5) -> 59
A6: 2024-10-22 | B6: 86 | C6: 1 | D6: 0 | E6: 87 | F6: =SUM(F23,F40,F57,F79) -> 0 | G6: =SUM(G23,G79) -> 0 | H6: =SUM(H23,H40,H57,H79) -> 0 | I6: 0 | J6: =SUM(J23,J40,J57,J79) -> 3 | K6: 0 | L6: 0 | M6: 3 | N6: =SUM(N23,N40,N57,N79) -> 1 | O6: 1 | P6: 0 | Q6: 2 | R6: =SUM(R23,R40,R57,R79) -> 0 | S6: 0 | T6: 0 | U6: 0 | V6: =SUM(V23,V40,V57,B96,C96,I96,J96) -> 82 | W6: =SUM(W23,W40,W57,W79,D96,K96) -> 0 | X6: =SUM(X23,X40,X57,X79,E96,L96) -> 0 | Y6: 82
A7: 2024-11-22 | B7: 76 | C7: 3 | D7: 0 | E7: 79 | F7: 0 | G7: 0 | H7: 0 | I7: 0 | J7: 2 | K7: 2 | L7: 0 | M7: 4 | N7: 1 | O7: 0 | P7: 0 | Q7: 1 | R7: 1 | S7: 0 | T7: 0 | U7: 1 | V7: 72 | W7: 1 | X7: 0 | Y7: 73
A8: 2024-12-22 | B8: 77 | C8: 0 | D8: 1 | E8: 78 | F8: 0 | G8: 0 | H8: 0 | I8: 0 | J8: 2 | K8: 0 | L8: 0 | M8: 2 | N8: 2 | O8: 0 | P8: 0 | Q8: 2 | R8: 8 | S8: 0 | T8: 0 | U8: 8 | V8: 65 | W8: 0 | X8: 1 | Y8: 66
A9: 2025-01-22 | B9: =SUM(F9,J9,N9,R9,V9) -> 99 | C9: 3 | D9: 4 | E9: 106 | F9: 0 | G9: 0 | H9: 0 | I9: 0 | J9: 2 | K9: 0 | L9: 0 | M9: 2 | N9: 3 | O9: 0 | P9: 0 | Q9: 3 | R9: 8 | S9: 1 | T9: 2 | U9: 11 | V9: 86 | W9: 2 | X9: 2 | Y9: 90
A10: 2025-02-22 | B10: 89 | C10: 1 | D10: 1 | E10: 91 | F10: 0 | G10: 0 | H10: 0 | I10: 0 | J10: 2 | K10: 0 | L10: 1 | M10: 3 | N10: 4 | O10: 0 | P10: 0 | Q10: 4 | R10: 5 | S10: 1 | T10: 0 | U10: 6 | V10: 78 | W10: 0 | X10: 0 | Y10: 78
A11: 2025-03-22 | B11: 84 | C11: 0 | D11: 0 | E11: 84 | F11: 0 | G11: 0 | H11: 0 | I11: 0 | J11: 2 | K11: 0 | L11: 0 | M11: 2 | N11: 1 | O11: 0 | P11: 0 | Q11: 1 | R11: 5 | S11: 0 | T11: 0 | U11: 5 | V11: 76 | W11: 0 | X11: 0 | Y11: 76
A12: 2025-04-22 | B12: 71 | C12: =SUM(G12,K12,O12,S12,W12) -> 0 | D12: =SUM(H12,L12,P12,T12,X12) -> 0 | E12: =SUM(B12:D12) -> 71 | F12: 0 | G12: 0 | H12: 0 | I12: 0 | J12: 3 | K12: 0 | L12: 0 | M12: 3 | N12: 1 | O12: 0 | P12: 0 | Q12: 1 | R12: 4 | S12: 0 | T12: 0 | U12: 4 | V12: 63 | W12: 0 | X12: 0 | Y12: 63
A13: 2025-05-22 | B13: 119 | C13: 0 | D13: 0 | E13: 119 | F13: 0 | G13: 0 | H13: 0 | I13: 0 | J13: 2 | K13: 0 | L13: 0 | M13: 2 | N13: 1 | O13: 0 | P13: 0 | Q13: 1 | R13: 2 | S13: 0 | T13: 0 | U13: 2 | V13: 114 | W13: 0 | X13: 0 | Y13: 114
A14: 2025-06-22 | B14: 270 | C14: 0 | D14: 10 | E14: =SUM(B14:D14) -> 280 | F14: 0 | G14: 0 | H14: 0 | I14: 0 | J14: 3 | K14: 0 | L14: 5 | M14: 8 | N14: 20 | O14: 0 | P14: 2 | Q14: 22 | R14: 0 | S14: 0 | T14: 0 | U14: 0 | V14: 247 | W14: 0 | X14: 3 | Y14: 250
A15: 2025-07-22 | B15: 205 | C15: =SUM(G15,K15,O15,S15,W15) -> 0 | D15: =SUM(H15,L15,P15,T15,X15) -> 4 | E15: =SUM(B15:D15) -> 209 | F15: 0 | G15: 0 | H15: 0 | I15: 0 | J15: 1 | K15: 0 | L15: 0 | M15: 1 | N15: 1 | O15: 0 | P15: 0 | Q15: 1 | R15: 0 | S15: 0 | T15: 0 | U15: 0 | V15: 203 | W15: 0 | X15: 4 | Y15: 207
A16: 2025-08-22 | B16: 140 | C16: =SUM(G16,K16,O16,S16,W16) -> 0 | D16: =SUM(H16,L16,P16,T16,X16) -> 1 | E16: =SUM(B16:D16) -> 141 | F16: 0 | G16: 0 | H16: 0 | I16: 0 | J16: 2 | K16: 0 | L16: 0 | M16: 2 | N16: 0 | O16: 0 | P16: 0 | Q16: 0 | R16: 3 | S16: 0 | T16: 1 | U16: 4 | V16: 135 | W16: 0 | X16: 0 | Y16: 135
A17: 2025-09-22 | B17: =SUM(F17,J17,N17,R17,V17) -> 104 | C17: =SUM(G17,K17,O17,S17,W17) -> 0 | D17: =SUM(H17,L17,P17,T17,X17) -> 8 | E17: =SUM(B17:D17) -> 112 | F17: =SUM(F34,F51,F68,F90) -> 0 | G17: 0 | H17: 0 | I17: 0 | J17: 8 | K17: 0 | L17: 0 | M17: 8 | N17: 7 | O17: 0 | P17: 3 | Q17: 10 | R17: 0 | S17: 0 | T17: 0 | U17: 0 | V17: =SUM(V34,V51,V68,B107,C107,I107,J107) -> 89 | W17: =SUM(W34,W51,W68,W90,D107,K107) -> 0 | X17: =SUM(X34,X51,X68,X90,E107,L107) -> 5 | Y17: 94
A19: FT-D2 to FT-D2 Transfer Summary
A20: Total | F20: NW Alberta and NE BC | J20: NE Alberta | N20: Edmonton and Area | R20: SW Alberta | V20: SE Alberta
A21: Month | B21: Approved | C21: Denied | D21: Cancelled | E21: Total | F21: Approved | G21: Denied | H21: Cancelled | I21: Total | J21: Approved | K21: Denied | L21: Cancelled | M21: Total | N21: Approved | O21: Denied | P21: Cancelled | Q21: Total | R21: Approved | S21: Denied | T21: Cancelled | U21: Total | V21: Approved | W21: Denied | X21: Cancelled | Y21: Total
A22: 2024-09-22 | B22: =SUM(F22,J22,N22,R22,V22) -> 6 | C22: =SUM(G22,K22,O22,S22,W22) -> 0 | D22: =SUM(H22,L22,P22,T22,X22) -> 0 | E22: =SUM(B22:D22) -> 6 | F22: 1 | G22: 0 | H22: 0 | I22: =SUM(F22:H22) -> 1 | J22: 1 | K22: 0 | L22: 0 | M22: =SUM(J22:L22) -> 1 | N22: 1 | O22: 0 | P22: 0 | Q22: =SUM(N22:P22) -> 1 | R22: 0 | S22: 0 | T22: 0 | U22: =SUM(R22:T22) -> 0 | V22: 3 | W22: 0 | X22: 0 | Y22: =SUM(V22:X22) -> 3
A23: 2024-10-22 | B23: 9 | C23: 1 | D23: 0 | E23: 10 | F23: 0 | G23: 0 | H23: 0 | I23: 0 | J23: 3 | K23: 0 | L23: 0 | M23: 3 | N23: 1 | O23: 1 | P23: 0 | Q23: 2 | R23: 0 | S23: 0 | T23: 0 | U23: 0 | V23: 5 | W23: 0 | X23: 0 | Y23: 5
A24: 2024-11-22 | B24: 9 | C24: 3 | D24: 0 | E24: 12 | F24: 0 | G24: 0 | H24: 0 | I24: 0 | J24: 2 | K24: 2 | L24: 0 | M24: 4 | N24: 1 | O24: 0 | P24: 0 | Q24: 1 | R24: 0 | S24: 0 | T24: 0 | U24: 0 | V24: 6 | W24: 1 | X24: 0 | Y24: 7
A25: 2024-12-22 | B25: 8 | C25: 0 | D25: 0 | E25: 8 | F25: 0 | G25: 0 | H25: 0 | I25: 0 | J25: 2 | K25: 0 | L25: 0 | M25: 2 | N25: 2 | O25: 0 | P25: 0 | Q25: 2 | R25: 0 | S25: 0 | T25: 0 | U25: 0 | V25: 4 | W25: 0 | X25: 0 | Y25: 4
A26: 2025-01-22 | B26: 7 | C26: 0 | D26: 0 | E26: 7 | F26: 0 | G26: 0 | H26: 0 | I26: 0 | J26: 2 | K26: 0 | L26: 0 | M26: 2 | N26: 2 | O26: 0 | P26: 0 | Q26: 2 | R26: 0 | S26: 0 | T26: 0 | U26: 0 | V26: 3 | W26: 0 | X26: 0 | Y26: 3
A27: 2025-02-22 | B27: 11 | C27: 1 | D27: 1 | E27: 13 | F27: 0 | G27: 0 | H27: 0 | I27: 0 | J27: 2 | K27: 0 | L27: 1 | M27: 3 | N27: 4 | O27: 0 | P27: 0 | Q27: 4 | R27: 2 | S27: 1 | T27: 0 | U27: 3 | V27: 3 | W27: 0 | X27: 0 | Y27: 3
A28: 2025-03-22 | B28: 7 | C28: 0 | D28: 0 | E28: 7 | F28: 0 | G28: 0 | H28: 0 | I28: 0 | J28: 2 | K28: 0 | L28: 0 | M28: 2 | N28: 1 | O28: 0 | P28: 0 | Q28: 1 | R28: 0 | S28: 0 | T28: 0 | U28: 0 | V28: 4 | W28: 0 | X28: 0 | Y28: 4
A29: 2025-04-22 | B29: =SUM(F29,J29,N29,R29,V29) -> 5 | C29: =SUM(G29,K29,O29,S29,W29) -> 0 | D29: =SUM(H29,L29,P29,T29,X29) -> 0 | E29: =SUM(B29:D29) -> 5 | F29: 0 | G29: 0 | H29: 0 | I29: =SUM(F29:H29) -> 0 | J29: 3 | K29: 0 | L29: 0 | M29: =SUM(J29:L29) -> 3 | N29: 1 | O29: 0 | P29: 0 | Q29: =SUM(N29:P29) -> 1 | R29: 0 | S29: 0 | T29: 0 | U29: =SUM(R29:T29) -> 0 | V29: 1 | W29: 0 | X29: 0 | Y29: =SUM(V29:X29) -> 1
A30: 2025-05-22 | B30: 11 | C30: 0 | D30: 0 | E30: 11 | F30: 0 | G30: 0 | H30: 0 | I30: 0 | J30: 2 | K30: 0 | L30: 0 | M30: 2 | N30: 1 | O30: 0 | P30: 0 | Q30: 1 | R30: 2 | S30: 0 | T30: 0 | U30: 2 | V30: 6 | W30: 0 | X30: 0 | Y30: 6
A31: 2025-06-22 | B31: 36 | C31: 0 | D31: 7 | E31: 43 | F31: 0 | G31: 0 | H31: 0 | I31: 0 | J31: 3 | K31: 0 | L31: 5 | M31: 8 | N31: 20 | O31: 0 | P31: 2 | Q31: 22 | R31: 0 | S31: 0 | T31: 0 | U31: 0 | V31: 13 | W31: 0 | X31: 0 | Y31: 13
A32: 2025-07-22 | B32: =SUM(F32,J32,N32,R32,V32) -> 9 | C32: =SUM(G32,K32,O32,S32,W32) -> 0 | D32: =SUM(H32,L32,P32,T32,X32) -> 0 | E32: =SUM(B32:D32) -> 9 | F32: 0 | G32: 0 | H32: 0 | I32: =SUM(F32:H32) -> 0 | J32: 1 | K32: 0 | L32: 0 | M32: =SUM(J32:L32) -> 1 | N32: 1 | O32: 0 | P32: 0 | Q32: =SUM(N32:P32) -> 1 | R32: 0 | S32: 0 | T32: 0 | U32: =SUM(R32:T32) -> 0 | V32: 7 | W32: 0 | X32: 0 | Y32: =SUM(V32:X32) -> 7
A33: 2025-08-22 | B33: =SUM(F33,J33,N33,R33,V33) -> 5 | C33: =SUM(G33,K33,O33,S33,W33) -> 0 | D33: =SUM(H33,L33,P33,T33,X33) -> 0 | E33: =SUM(B33:D33) -> 5 | F33: 0 | G33: 0 | H33: 0 | I33: =SUM(F33:H33) -> 0 | J33: 2 | K33: 0 | L33: 0 | M33: =SUM(J33:L33) -> 2 | N33: 0 | O33: 0 | P33: 0 | Q33: =SUM(N33:P33) -> 0 | R33: 0 | S33: 0 | T33: 0 | U33: =SUM(R33:T33) -> 0 | V33: 3 | W33: 0 | X33: 0 | Y33: =SUM(V33:X33) -> 3
A34: 2025-09-22 | B34: =SUM(F34,J34,N34,R34,V34) -> 24 | C34: =SUM(G34,K34,O34,S34,W34) -> 0 | D34: =SUM(H34,L34,P34,T34,X34) -> 8 | E34: =SUM(B34:D34) -> 32 | F34: 0 | G34: 0 | H34: 0 | I34: =SUM(F34:H34) -> 0 | J34: 8 | K34: 0 | L34: 0 | M34: =SUM(J34:L34) -> 8 | N34: 7 | O34: 0 | P34: 3 | Q34: =SUM(N34:P34) -> 10 | R34: 0 | S34: 0 | T34: 0 | U34: =SUM(R34:T34) -> 0 | V34: 9 | W34: 0 | X34: 5 | Y34: =SUM(V34:X34) -> 14
A36: FT-D3 to FT-D3 Transfer Summary
A37: Total | F37: NW Alberta and NE BC | J37: NE Alberta | N37: Edmonton and Area | R37: SW Alberta | V37: SE Alberta
A38: Month | B38: Approved | C38: Denied | D38: Cancelled | E38: Total | F38: Approved | G38: Denied | H38: Cancelled | I38: Total | J38: Approved | K38: Denied | L38: Cancelled | M38: Total | N38: Approved | O38: Denied | P38: Cancelled | Q38: Total | R38: Approved | S38: Denied | T38: Cancelled | U38: Total | V38: Approved | W38: Denied | X38: Cancelled | Y38: Total
A39: 2024-09-22 | B39: =SUM(F39,J39,N39,R39,V39) -> 0 | C39: =SUM(G39,K39,O39,S39,W39) -> 0 | D39: =SUM(H39,L39,P39,T39,X39) -> 0 | E39: =SUM(B39:D39) -> 0 | F39: 0 | G39: 0 | H39: 0 | I39: =SUM(F39:H39) -> 0 | J39: 0 | K39: 0 | L39: 0 | M39: =SUM(J39:L39) -> 0 | N39: 0 | O39: 0 | P39: 0 | Q39: =SUM(N39:P39) -> 0 | R39: 0 | S39: 0 | T39: 0 | U39: =SUM(R39:T39) -> 0 | V39: 0 | W39: 0 | X39: 0 | Y39: =SUM(V39:X39) -> 0
A40: 2024-10-22 | B40: 0 | C40: 0 | D40: 0 | E40: 0 | F40: 0 | G40: 0 | H40: 0 | I40: 0 | J40: 0 | K40: 0 | L40: 0 | M40: 0 | N40: 0 | O40: 0 | P40: 0 | Q40: 0 | R40: 0 | S40: 0 | T40: 0 | U40: 0 | V40: 0 | W40: 0 | X40: 0 | Y40: 0
A41: 2024-11-22 | B41: 0 | C41: 0 | D41: 0 | E41: 0 | F41: 0 | G41: 0 | H41: 0 | I41: 0 | J41: 0 | K41: 0 | L41: 0 | M41: 0 | N41: 0 | O41: 0 | P41: 0 | Q41: 0 | R41: 0 | S41: 0 | T41: 0 | U41: 0 | V41: 0 | W41: 0 | X41: 0 | Y41: 0
A42: 2024-12-22 | B42: 0 | C42: 0 | D42: 0 | E42: 0 | F42: 0 | G42: 0 | H42: 0 | I42: 0 | J42: 0 | K42: 0 | L42: 0 | M42: 0 | N42: 0 | O42: 0 | P42: 0 | Q42: 0 | R42: 0 | S42: 0 | T42: 0 | U42: 0 | V42: 0 | W42: 0 | X42: 0 | Y42: 0
A43: 2025-01-22 | B43: 1 | C43: 0 | D43: 0 | E43: 1 | F43: 0 | G43: 0 | H43: 0 | I43: 0 | J43: 0 | K43: 0 | L43: 0 | M43: 0 | N43: 1 | O43: 0 | P43: 0 | Q43: 1 | R43: 0 | S43: 0 | T43: 0 | U43: 0 | V43: 0 | W43: 0 | X43: 0 | Y43: 0
A44: 2025-02-22 | B44: 0 | C44: 0 | D44: 0 | E44: 0 | F44: 0 | G44: 0 | H44: 0 | I44: 0 | J44: 0 | K44: 0 | L44: 0 | M44: 0 | N44: 0 | O44: 0 | P44: 0 | Q44: 0 | R44: 0 | S44: 0 | T44: 0 | U44: 0 | V44: 0 | W44: 0 | X44: 0 | Y44: 0
A45: 2025-03-22 | B45: 0 | C45: 0 | D45: 0 | E45: 0 | F45: 0 | G45: 0 | H45: 0 | I45: 0 | J45: 0 | K45: 0 | L45: 0 | M45: 0 | N45: 0 | O45: 0 | P45: 0 | Q45: 0 | R45: 0 | S45: 0 | T45: 0 | U45: 0 | V45: 0 | W45: 0 | X45: 0 | Y45: 0
A46: 2025-04-22 | B46: =SUM(F46,J46,N46,R46,V46) -> 0 | C46: =SUM(G46,K46,O46,S46,W46) -> 0 | D46: =SUM(H46,L46,P46,T46,X46) -> 0 | E46: =SUM(B46:D46) -> 0 | F46: 0 | G46: 0 | H46: 0 | I46: =SUM(F46:H46) -> 0 | J46: 0 | K46: 0 | L46: 0 | M46: =SUM(J46:L46) -> 0 | N46: 0 | O46: 0 | P46: 0 | Q46: =SUM(N46:P46) -> 0 | R46: 0 | S46: 0 | T46: 0 | U46: =SUM(R46:T46) -> 0 | V46: 0 | W46: 0 | X46: 0 | Y46: =SUM(V46:X46) -> 0
A47: 2025-05-22 | B47: 0 | C47: 0 | D47: 0 | E47: 0 | F47: 0 | G47: 0 | H47: 0 | I47: 0 | J47: 0 | K47: 0 | L47: 0 | M47: 0 | N47: 0 | O47: 0 | P47: 0 | Q47: 0 | R47: 0 | S47: 0 | T47: 0 | U47: 0 | V47: 0 | W47: 0 | X47: 0 | Y47: 0
A48: 2025-06-22 | B48: 0 | C48: 0 | D48: 0 | E48: 0 | F48: 0 | G48: 0 | H48: 0 | I48: 0 | J48: 0 | K48: 0 | L48: 0 | M48: 0 | N48: 0 | O48: 0 | P48: 0 | Q48: 0 | R48: 0 | S48: 0 | T48: 0 | U48: 0 | V48: 0 | W48: 0 | X48: 0 | Y48: 0
A49: 2025-07-22 | B49: =SUM(F49,J49,N49,R49,V49) -> 0 | C49: =SUM(G49,K49,O49,S49,W49) -> 0 | D49: =SUM(H49,L49,P49,T49,X49) -> 0 | E49: =SUM(B49:D49) -> 0 | F49: 0 | G49: 0 | H49: 0 | I49: =SUM(F49:H49) -> 0 | J49: 0 | K49: 0 | L49: 0 | M49: =SUM(J49:L49) -> 0 | N49: 0 | O49: 0 | P49: 0 | Q49: =SUM(N49:P49) -> 0 | R49: 0 | S49: 0 | T49: 0 | U49: =SUM(R49:T49) -> 0 | V49: 0 | W49: 0 | X49: 0 | Y49: =SUM(V49:X49) -> 0
A50: 2025-08-22 | B50: =SUM(F50,J50,N50,R50,V50) -> 0 | C50: =SUM(G50,K50,O50,S50,W50) -> 0 | D50: =SUM(H50,L50,P50,T50,X50) -> 0 | E50: =SUM(B50:D50) -> 0 | F50: 0 | G50: 0 | H50: 0 | I50: =SUM(F50:H50) -> 0 | J50: 0 | K50: 0 | L50: 0 | M50: =SUM(J50:L50) -> 0 | N50: 0 | O50: 0 | P50: 0 | Q50: =SUM(N50:P50) -> 0 | R50: 0 | S50: 0 | T50: 0 | U50: =SUM(R50:T50) -> 0 | V50: 0 | W50: 0 | X50: 0 | Y50: =SUM(V50:X50) -> 0
A51: 2025-09-22 | B51: =SUM(F51,J51,N51,R51,V51) -> 0 | C51: =SUM(G51,K51,O51,S51,W51) -> 0 | D51: =SUM(H51,L51,P51,T51,X51) -> 0 | E51: =SUM(B51:D51) -> 0 | F51: 0 | G51: 0 | H51: 0 | I51: =SUM(F51:H51) -> 0 | J51: 0 | K51: 0 | L51: 0 | M51: =SUM(J51:L51) -> 0 | N51: 0 | O51: 0 | P51: 0 | Q51: =SUM(N51:P51) -> 0 | R51: 0 | S51: 0 | T51: 0 | U51: =SUM(R51:T51) -> 0 | V51: 0 | W51: 0 | X51: 0 | Y51: =SUM(V51:X51) -> 0
A53: FT-D1 to FT-D2 Transfer Summary
A54: Total | F54: NW Alberta and NE BC | J54: NE Alberta | N54: Edmonton and Area | R54: SW Alberta | V54: SE Alberta
A55: Month | B55: Approved | C55: Denied | D55: Cancelled | E55: Total | F55: Approved | G55: Denied | H55: Cancelled | I55: Total | J55: Approved | K55: Denied | L55: Cancelled | M55: Total | N55: Approved | O55: Denied | P55: Cancelled | Q55: Total | R55: Approved | S55: Denied | T55: Cancelled | U55: Total | V55: Approved | W55: Denied | X55: Cancelled | Y55: Total
A56: 2024-09-22 | B56: =SUM(F56,J56,N56,R56,V56) -> 0 | C56: =SUM(G56,K56,O56,S56,W56) -> 0 | D56: =SUM(H56,L56,P56,T56,X56) -> 0 | E56: =SUM(B56:D56) -> 0 | F56: 0 | G56: 0 | H56: 0 | I56: 0 | J56: 0 | K56: 0 | L56: 0 | M56: 0 | N56: 0 | O56: 0 | P56: 0 | Q56: 0 | R56: 0 | S56: 0 | T56: 0 | U56: 0 | V56: 0 | W56: 0 | X56: 0 | Y56: =SUM(X56,W56,V56) -> 0
A57: 2024-10-22 | B57: 0 | C57: 0 | D57: 0 | E57: 0 | F57: 0 | G57: 0 | H57: 0 | I57: 0 | J57: 0 | K57: 0 | L57: 0 | M57: 0 | N57: 0 | O57: 0 | P57: 0 | Q57: 0 | R57: 0 | S57: 0 | T57: 0 | U57: 0 | V57: 0 | W57: 0 | X57: 0 | Y57: 0
A58: 2024-11-22 | B58: 0 | C58: 0 | D58: 0 | E58: 0 | F58: 0 | G58: 0 | H58: 0 | I58: 0 | J58: 0 | K58: 0 | L58: 0 | M58: 0 | N58: 0 | O58: 0 | P58: 0 | Q58: 0 | R58: 0 | S58: 0 | T58: 0 | U58: 0 | V58: 0 | W58: 0 | X58: 0 | Y58: 0
A59: 2024-12-22 | B59: 0 | C59: 0 | D59: 0 | E59: 0 | F59: 0 | G59: 0 | H59: 0 | I59: 0 | J59: 0 | K59: 0 | L59: 0 | M59: 0 | N59: 0 | O59: 0 | P59: 0 | Q59: 0 | R59: 0 | S59: 0 | T59: 0 | U59: 0 | V59: 0 | W59: 0 | X59: 0 | Y59: 0
A60: 2025-01-22 | B60: 0 | C60: 0 | D60: 0 | E60: 0 | F60: 0 | G60: 0 | H60: 0 | I60: 0 | J60: 0 | K60: 0 | L60: 0 | M60: 0 | N60: 0 | O60: 0 | P60: 0 | Q60: 0 | R60: 0 | S60: 0 | T60: 0 | U60: 0 | V60: 0 | W60: 0 | X60: 0 | Y60: 0
A61: 2025-02-22 | B61: 0 | C61: 0 | D61: 0 | E61: 0 | F61: 0 | G61: 0 | H61: 0 | I61: 0 | J61: 0 | K61: 0 | L61: 0 | M61: 0 | N61: 0 | O61: 0 | P61: 0 | Q61: 0 | R61: 0 | S61: 0 | T61: 0 | U61: 0 | V61: 0 | W61: 0 | X61: 0 | Y61: 0
A62: 2025-03-22 | B62: 0 | C62: 0 | D62: 0 | E62: 0 | F62: 0 | G62: 0 | H62: 0 | I62: 0 | J62: 0 | K62: 0 | L62: 0 | M62: 0 | N62: 0 | O62: 0 | P62: 0 | Q62: 0 | R62: 0 | S62: 0 | T62: 0 | U62: 0 | V62: 0 | W62: 0 | X62: 0 | Y62: 0
A63: 2025-04-22 | B63: =SUM(F63,J63,N63,R63,V63) -> 0 | C63: =SUM(G63,K63,O63,S63,W63) -> 0 | D63: =SUM(H63,L63,P63,T63,X63) -> 0 | E63: =SUM(B63:D63) -> 0 | F63: 0 | G63: 0 | H63: 0 | I63: 0 | J63: 0 | K63: 0 | L63: 0 | M63: 0 | N63: 0 | O63: 0 | P63: 0 | Q63: 0 | R63: 0 | S63: 0 | T63: 0 | U63: 0 | V63: 0 | W63: 0 | X63: 0 | Y63: =SUM(X63,W63,V63) -> 0
A64: 2025-05-22 | B64: 0 | C64: 0 | D64: 0 | E64: 0 | F64: 0 | G64: 0 | H64: 0 | I64: 0 | J64: 0 | K64: 0 | L64: 0 | M64: 0 | N64: 0 | O64: 0 | P64: 0 | Q64: 0 | R64: 0 | S64: 0 | T64: 0 | U64: 0 | V64: 0 | W64: 0 | X64: 0 | Y64: 0
A65: 2025-06-22 | B65: 9 | C65: 0 | D65: 1 | E65: 10 | F65: 0 | G65: 0 | H65: 0 | I65: 0 | J65: 0 | K65: 0 | L65: 0 | M65: 0 | N65: 0 | O65: 0 | P65: 0 | Q65: 0 | R65: 0 | S65: 0 | T65: 0 | U65: 0 | V65: 9 | W65: 0 | X65: 1 | Y65: 10
A66: 2025-07-22 | B66: =SUM(F66,J66,N66,R66,V66) -> 12 | C66: =SUM(G66,K66,O66,S66,W66) -> 0 | D66: =SUM(H66,L66,P66,T66,X66) -> 0 | E66: =SUM(B66:D66) -> 12 | F66: 0 | G66: 0 | H66: 0 | I66: 0 | J66: 0 | K66: 0 | L66: 0 | M66: 0 | N66: 0 | O66: 0 | P66: 0 | Q66: 0 | R66: 0 | S66: 0 | T66: 0 | U66: 0 | V66: 12 | W66: 0 | X66: 0 | Y66: =SUM(X66,W66,V66) -> 12
A67: 2025-08-22 | B67: =SUM(F67,J67,N67,R67,V67) -> 0 | C67: =SUM(G67,K67,O67,S67,W67) -> 0 | D67: =SUM(H67,L67,P67,T67,X67) -> 0 | E67: =SUM(B67:D67) -> 0 | F67: 0 | G67: 0 | H67: 0 | I67: 0 | J67: 0 | K67: 0 | L67: 0 | M67: 0 | N67: 0 | O67: 0 | P67: 0 | Q67: 0 | R67: 0 | S67: 0 | T67: 0 | U67: 0 | V67: 0 | W67: 0 | X67: 0 | Y67: =SUM(X67,W67,V67) -> 0
A68: 2025-09-22 | B68: =SUM(F68,J68,N68,R68,V68) -> 0 | C68: =SUM(G68,K68,O68,S68,W68) -> 0 | D68: =SUM(H68,L68,P68,T68,X68) -> 0 | E68: =SUM(B68:D68) -> 0 | F68: 0 | G68: 0 | H68: 0 | I68: 0 | J68: 0 | K68: 0 | L68: 0 | M68: 0 | N68: 0 | O68: 0 | P68: 0 | Q68: 0 | R68: 0 | S68: 0 | T68: 0 | U68: 0 | V68: 0 | W68: 0 | X68: 0 | Y68: =SUM(X68,W68,V68) -> 0
A75: FT-D2 to FT-D1 Transfer Summary
A76: Total | F76: NW Alberta and NE BC | J76: NE Alberta | N76: Edmonton and Area | R76: SW Alberta | V76: SE Alberta
A77: Month | B77: Approved | C77: Denied | D77: Cancelled | E77: Total | F77: Approved | G77: Denied | H77: Cancelled | I77: Total | J77: Approved | K77: Denied | L77: Cancelled | M77: Total | N77: Approved | O77: Denied | P77: Cancelled | Q77: Total | R77: Approved | S77: Denied | T77: Cancelled | U77: Total | V77: Approved | W77: Denied | X77: Cancelled | Y77: Total
A78: 2024-09-22 | B78: =SUM(F78,J78,N78,R78,V78) -> 0 | C78: =SUM(G78,K78,O78,S78,W78) -> 0 | D78: =SUM(H78,L78,P78,T78,X78) -> 0 | E78: =SUM(B78:D78) -> 0 | F78: 0 | G78: 0 | H78: 0 | I78: 0 | J78: 0 | K78: 0 | L78: 0 | M78: 0 | N78: 0 | O78: 0 | P78: 0 | Q78: 0 | R78: 0 | S78: 0 | T78: 0 | U78: =SUM(R78:T78) -> 0 | V78: 0 | W78: 0 | X78: 0 | Y78: =SUM(V78:X78) -> 0
A79: 2024-10-22 | B79: 0 | C79: 0 | D79: 0 | E79: 0 | F79: 0 | G79: 0 | H79: 0 | I79: 0 | J79: 0 | K79: 0 | L79: 0 | M79: 0 | N79: 0 | O79: 0 | P79: 0 | Q79: 0 | R79: 0 | S79: 0 | T79: 0 | U79: 0 | V79: 0 | W79: 0 | X79: 0 | Y79: 0
A80: 2024-11-22 | B80: 5 | C80: 0 | D80: 0 | E80: 5 | F80: 0 | G80: 0 | H80: 0 | I80: 0 | J80: 0 | K80: 0 | L80: 0 | M80: 0 | N80: 0 | O80: 0 | P80: 0 | Q80: 0 | R80: 1 | S80: 0 | T80: 0 | U80: 1 | V80: 4 | W80: 0 | X80: 0 | Y80: 4
A81: 2024-12-22 | B81: 11 | C81: 0 | D81: 0 | E81: 11 | F81: 0 | G81: 0 | H81: 0 | I81: 0 | J81: 0 | K81: 0 | L81: 0 | M81: 0 | N81: 0 | O81: 0 | P81: 0 | Q81: 0 | R81: 8 | S81: 0 | T81: 0 | U81: 8 | V81: 3 | W81: 0 | X81: 0 | Y81: 3
A82: 2025-01-22 | B82: 8 | C82: 3 | D82: 2 | E82: 13 | F82: 0 | G82: 0 | H82: 0 | I82: 0 | J82: 0 | K82: 0 | L82: 0 | M82: 0 | N82: 0 | O82: 0 | P82: 0 | Q82: 0 | R82: 8 | S82: 1 | T82: 2 | U82: 11 | V82: 0 | W82: 2 | X82: 0 | Y82: 2
A83: 2025-02-22 | B83: 3 | C83: 0 | D83: 0 | E83: 3 | F83: 0 | G83: 0 | H83: 0 | I83: 0 | J83: 0 | K83: 0 | L83: 0 | M83: 0 | N83: 0 | O83: 0 | P83: 0 | Q83: 0 | R83: 3 | S83: 0 | T83: 0 | U83: 3 | V83: 0 | W83: 0 | X83: 0 | Y83: 0
A84: 2025-03-22 | B84: 5 | C84: 0 | D84: 0 | E84: 5 | F84: 0 | G84: 0 | H84: 0 | I84: 0 | J84: 0 | K84: 0 | L84: 0 | M84: 0 | N84: 0 | O84: 0 | P84: 0 | Q84: 0 | R84: 5 | S84: 0 | T84: 0 | U84: 5 | V84: 0 | W84: 0 | X84: 0 | Y84: 0
A85: 2025-04-22 | B85: =SUM(F85,J85,N85,R85,V85) -> 4 | C85: =SUM(G85,K85,O85,S85,W85) -> 0 | D85: =SUM(H85,L85,P85,T85,X85) -> 0 | E85: =SUM(B85:D85) -> 4 | F85: 0 | G85: 0 | H85: 0 | I85: 0 | J85: 0 | K85: 0 | L85: 0 | M85: 0 | N85: 0 | O85: 0 | P85: 0 | Q85: 0 | R85: 4 | S85: 0 | T85: 0 | U85: =SUM(R85:T85) -> 4 | V85: 0 | W85: 0 | X85: 0 | Y85: =SUM(V85:X85) -> 0
A86: 2025-05-22 | B86: 0 | C86: 0 | D86: 0 | E86: 0 | F86: 0 | G86: 0 | H86: 0 | I86: 0 | J86: 0 | K86: 0 | L86: 0 | M86: 0 | N86: 0 | O86: 0 | P86: 0 | Q86: 0 | R86: 0 | S86: 0 | T86: 0 | U86: =SUM(R86:T86) -> 0 | V86: 0 | W86: 0 | X86: 0 | Y86: 0
A87: 2025-06-22 | B87: 0 | C87: 0 | D87: 0 | E87: 0 | F87: 0 | G87: 0 | H87: 0 | I87: 0 | J87: 0 | K87: 0 | L87: 0 | M87: 0 | N87: 0 | O87: 0 | P87: 0 | Q87: 0 | R87: 0 | S87: 0 | T87: 0 | U87: 0 | V87: 0 | W87: 0 | X87: 0 | Y87: 0
A88: 2025-07-22 | B88: =SUM(F88,J88,N88,R88,V88) -> 0 | C88: =SUM(G88,K88,O88,S88,W88) -> 0 | D88: =SUM(H88,L88,P88,T88,X88) -> 0 | E88: =SUM(B88:D88) -> 0 | F88: 0 | G88: 0 | H88: 0 | I88: 0 | J88: 0 | K88: 0 | L88: 0 | M88: 0 | N88: 0 | O88: 0 | P88: 0 | Q88: 0 | R88: 0 | S88: 0 | T88: 0 | U88: 0 | V88: 0 | W88: 0 | X88: 0 | Y88: =SUM(V88:X88) -> 0
A89: 2025-08-22 | B89: =SUM(F89,J89,N89,R89,V89) -> 3 | C89: =SUM(G89,K89,O89,S89,W89) -> 0 | D89: =SUM(H89,L89,P89,T89,X89) -> 1 | E89: =SUM(B89:D89) -> 4 | F89: 0 | G89: 0 | H89: 0 | I89: 0 | J89: 0 | K89: 0 | L89: 0 | M89: 0 | N89: 0 | O89: 0 | P89: 0 | Q89: 0 | R89: 3 | S89: 0 | T89: 1 | U89: =SUM(R89:T89) -> 4 | V89: 0 | W89: 0 | X89: 0 | Y89: =SUM(V89:X89) -> 0
A90: 2025-09-22 | B90: 0 | C90: =SUM(G90,K90,O90,S90,W90) -> 0 | D90: 0 | E90: =SUM(B90:D90) -> 0 | F90: 0 | G90: 0 | H90: 0 | I90: 0 | J90: 0 | K90: 0 | L90: 0 | M90: 0 | N90: 0 | O90: 0 | P90: 0 | Q90: 0 | R90: 0 | S90: 0 | T90: 0 | U90: =SUM(R90:T90) -> 0 | V90: 0 | W90: 0 | X90: 0 | Y90: =SUM(V90:X90) -> 0
A92: FT-D1 to FT-D1 Transfer Summary
A93: Empress to McNeill FT-D1 | H93: McNeill to Empress FT-D1
A94: Month | B94: Approved (Manual) | C94: Approved (ATP) | D94: Denied | E94: Cancelled | F94: Total | H94: Month | I94: Approved (Manual) | J94: Approved (ATP) | K94: Denied | L94: Cancelled | M94: Total
A95: 2024-09-22 | B95: 9 | C95: 9 | D95: 0 | E95: 0 | F95: =SUM(B95:E95) -> 18 | H95: 2024-09-22 | I95: 24 | J95: 14 | K95: 0 | L95: 0 | M95: =SUM(I95:L95) -> 38
A96: 2024-10-22 | B96: 14 | C96: 20 | D96: 0 | E96: 0 | F96: 34 | H96: 2024-10-22 | I96: 12 | J96: 31 | K96: 0 | L96: 0 | M96: 43
A97: 2024-11-22 | B97: 13 | C97: 3 | D97: 0 | E97: 0 | F97: 16 | H97: 2024-11-22 | I97: 14 | J97: 36 | K97: 0 | L97: 0 | M97: 50
A98: 2024-12-22 | B98: 9 | C98: 7 | D98: 0 | E98: 0 | F98: 16 | H98: 2024-12-22 | I98: 18 | J98: 27 | K98: 0 | L98: 1 | M98: 46
A99: 2025-01-22 | B99: 7 | C99: 38 | D99: 0 | E99: 2 | F99: 47 | H99: 2025-01-22 | I99: 12 | J99: 26 | K99: 0 | L99: 0 | M99: 38
A100: 2025-02-22 | B100: 0 | C100: 56 | D100: 0 | E100: 0 | F100: 56 | H100: 2025-02-22 | I100: 0 | J100: 19 | K100: 0 | L100: 0 | M100: 19
A101: 2025-03-22 | B101: 1 | C101: 36 | D101: 0 | E101: 0 | F101: 37 | H101: 2025-03-22 | I101: 2 | J101: 33 | K101: 0 | L101: 0 | M101: 35
A102: 2025-04-22 | B102: 0 | C102: 30 | D102: 0 | E102: 0 | F102: =SUM(B102:E102) -> 30 | H102: 2025-04-22 | I102: 0 | J102: 32 | K102: 0 | L102: 0 | M102: =SUM(I102:L102) -> 32
A103: 2025-05-22 | B103: 3 | C103: 67 | D103: 0 | E103: 0 | F103: 70 | H103: 2025-05-22 | I103: 2 | J103: 36 | K103: 0 | L103: 0 | M103: 38
A104: 2025-06-22 | B104: 16 | C104: 121 | D104: 0 | E104: 2 | F104: 139 | H104: 2025-06-22 | I104: 17 | J104: 71 | K104: 0 | L104: 0 | M104: 88
A105: 2025-07-22 | B105: 17 | C105: 103 | D105: 0 | E105: 4 | F105: =SUM(B105:E105) -> 124 | H105: 2025-07-22 | I105: 13 | J105: 51 | K105: 0 | L105: 0 | M105: =SUM(I105:L105) -> 64
A106: 2025-08-22 | B106: 0 | C106: 107 | D106: 0 | E106: 0 | F106: =SUM(B106:E106) -> 107 | H106: 2025-08-22 | I106: 0 | J106: 25 | K106: 0 | L106: 0 | M106: =SUM(I106:L106) -> 25
A107: 2025-09-22 | B107: 0 | C107: 48 | D107: 0 | E107: 0 | F107: =SUM(B107:E107) -> 48 | H107: 2025-08-22 | I107: 29 | J107: 3 | K107: 0 | L107: 0 | M107: =SUM(I107:L107) -> 32
A109: Cross Boundary Transfers
A110: Month | B110: Frequency | C110: Information
A111: 2023-06-01 | B111: N/A | C111: N/A
A112: 2024-09-01 | B112: N/A | C112: N/A
A113: 2024-10-01 | B113: 1 | C113: FT-D2 transfer request from NW Alberta and NE B.C. Area to Edmonton and Area was denied
A114: 2024-11-01 | B114: N/A | C114: N/A
A115: 2024-12-01 | B115: N/A | C115: N/A
A116: 2025-01-01 | B116: N/A | C116: N/A
A117: 2025-02-01 | B117: N/A | C117: N/A
A118: 2025-03-01 | B118: N/A | C118: N/A
A119: 2025-04-01 | B119: N/A | C119: N/A
A120: 2025-05-01 | B120: N/A | C120: N/A
A121: 2025-06-01 | B121: N/A | C121: N/A
A122: 2025-07-01 | B122: N/A | C122: N/A
A123: 2025-08-01 | B123: N/A | C123: N/A
A124: 2025-09-01 | B124: N/A | C124: N/A
A126: Notes:
A127: 1. Values represent the number of transfer requests processed in the specified month, regardless of effective date
A128: 2. Includes all "out and back" and "one-way" transfers
A129: 3. Out and back transfer requests are tallied as a single transaction
A130: 4. Transfers to storage are not included in totals
A131: 5. Transfers that cross a Delivery Design Area boundary are tallied in the area where the "To" location is situated
A132: 6. Cancelled transfer requests are initiated by the requester (customer, marketer etc.)
A133: 7. ATP is the acronym for Automated Transfer Process, requests that meet certain criteria may be approved automatically
A134: 8. Delivery Design Area boundaries are illustrated in the Design Methodology document on Customer Express (see NGTL/Regulatory/Facilities)
A135: http://www.tccustomerexpress.com/docs/ab_regulatory_facilities/Facilities%20Design%20Methodology%20Document%20-%20Revision%20May%2031,%202018_Oct%204.pdf

Sheet FT-D Transfers (Volume)
A1: FT-D Transfer Summary - Volume (GJ/d)
A2: Total | F2: NW Alberta and NE BC | J2: NE Alberta | N2: Edmonton and Area | R2: SW Alberta | V2: SE Alberta
A3: Month | B3: Approved | C3: Denied | D3: Cancelled | E3: Total | F3: Approved | G3: Denied | H3: Cancelled | I3: Total | J3: Approved | K3: Denied | L3: Cancelled | M3: Total | N3: Approved | O3: Denied | P3: Cancelled | Q3: Total | R3: Approved | S3: Denied | T3: Cancelled | U3: Total | V3: Approved | W3: Denied | X3: Cancelled | Y3: Total
A4: 2024-09-22 | B4: =SUM(F4,J4,N4,R4,V4) -> 1445127 | C4: =SUM(G4,K4,O4,S4,W4) -> 0 | D4: =SUM(H4,L4,P4,T4,X4) -> 6000 | E4: =SUM(B4:D4) -> 1451127 | F4: =SUM(F21,F38,F55,F80) -> 40 | G4: =SUM(G21,G38,G55,G80) -> 0 | H4: =SUM(H21,H38,H55,H80) -> 0 | I4: =SUM(F4:H4) -> 40 | J4: =SUM(J21,J38,J55,J80) -> 5000 | K4: =SUM(K21,K38,K55,K80) -> 0 | L4: =SUM(L21,L38,L55,L80) -> 0 | M4: =SUM(J4:L4) -> 5000 | N4: =SUM(N21,N38,N55,N80) -> 3000 | O4: =SUM(O21,O40,O55,O80) -> 0 | P4: =SUM(P21,P38,P55,P80) -> 0 | Q4: =SUM(N4:P4) -> 3000 | R4: =SUM(R21,R38,R55,R80) -> 0 | S4: =SUM(S21,S38,S55,S80) -> 0 | T4: =SUM(T21,T38,T55,T80) -> 0 | U4: =SUM(R4:T4) -> 0 | V4: =SUM(V21,V38,V55,V80,B98,C98,I98,J98) -> 1437087 | W4: =SUM(W21,W38,W55,W80,D98,K98) -> 0 | X4: =SUM(X21,X38,X55,X80,E98,L98) -> 6000 | Y4: =SUM(V4:X4) -> 1443087
A5: 2024-10-22 | B5: 1341115 | C5: 25 | D5: 0 | E5: 1341140 | F5: =SUM(F22,F39,F56,F81) -> 0 | G5: 0 | H5: 0 | I5: 0 | J5: =SUM(J22,J39,J56,J81) -> 20000 | K5: 0 | L5: 0 | M5: 20000 | N5: =SUM(N22,N39,N56,N81) -> 6000 | O5: =SUM(O22,O41,O56,O81) -> 25 | P5: =SUM(P22,P39,P56,P81) -> 0 | Q5: 6025 | R5: =SUM(R22,R39,R56,R81) -> 0 | S5: 0 | T5: 0 | U5: 0 | V5: =SUM(V22,V39,V56,V81,B99,C99,I99,J99) -> 1315115 | W5: =SUM(W22,W39,W56,W81,D99,K99) -> 0 | X5: =SUM(X22,X39,X56,X81,E99,L99) -> 0 | Y5: 1315115
A6: 2024-11-22 | B6: 1370525 | C6: 25 | D6: 0 | E6: 1370550 | F6: 0 | G6: 0 | H6: 0 | I6: 0 | J6: 10000 | K6: 0 | L6: 0 | M6: 10000 | N6: 6000 | O6: 25 | P6: 0 | Q6: 6025 | R6: 10000 | S6: 0 | T6: 0 | U6: 10000 | V6: 1344525 | W6: 0 | X6: 0 | Y6: 1344525
A7: 2024-12-22 | B7: 1662771 | C7: 0 | D7: 0 | E7: 1662771 | F7: 0 | G7: 0 | H7: 0 | I7: 0 | J7: 12500 | K7: 0 | L7: 0 | M7: 12500 | N7: 9000 | O7: 0 | P7: 0 | Q7: 9000 | R7: 10000 | S7: 0 | T7: 0 | U7: 10000 | V7: 1631271 | W7: 0 | X7: 0 | Y7: 1631271
A8: 2025-01-22 | B8: 1902338 | C8: =SUM(G8,K8,O8,S8,W8) -> 0 | D8: 14489 | E8: 1916827 | F8: 0 | G8: 0 | H8: 0 | I8: 0 | J8: 12500 | K8: 0 | L8: 0 | M8: 12500 | N8: 8200 | O8: 0 | P8: 0 | Q8: 8200 | R8: 10000 | S8: 0 | T8: 0 | U8: 10000 | V8: 1871638 | W8: 0 | X8: 14489 | Y8: 1886127
A9: 2025-02-22 | B9: 1914762 | C9: 0 | D9: 17489 | E9: 1932251 | F9: 0 | G9: 0 | H9: 0 | I9: 0 | J9: 9500 | K9: 0 | L9: 3000 | M9: 12500 | N9: 7000 | O9: 0 | P9: 0 | Q9: 7000 | R9: 8174 | S9: 0 | T9: 0 | U9: 8174 | V9: 1890088 | W9: 0 | X9: 14489 | Y9: 1904577
A10: 2025-03-22 | B10: 1503891 | C10: 0 | D10: 0 | E10: 1503891 | F10: 0 | G10: 0 | H10: 0 | I10: 0 | J10: 12500 | K10: 0 | L10: 0 | M10: 12500 | N10: 3000 | O10: 0 | P10: 0 | Q10: 3000 | R10: 17874 | S10: 0 | T10: 0 | U10: 17874 | V10: 1470517 | W10: 0 | X10: 0 | Y10: 1470517
A11: 2025-04-22 | B11: =SUM(F11,J11,N11,R11,V11) -> 1402106 | C11: 0 | D11: 10900 | E11: =SUM(B11:D11) -> 1413006 | F11: 0 | G11: 0 | H11: 0 | I11: 0 | J11: 45000 | K11: 0 | L11: 0 | M11: 45000 | N11: 4000 | O11: 0 | P11: 0 | Q11: 4000 | R11: 20500 | S11: 0 | T11: 0 | U11: 20500 | V11: 1332606 | W11: 0 | X11: 10900 | Y11: 1343506
A12: 2025-05-22 | B12: =SUM(F12,J12,N12,R12,V12) -> 3265730 | C12: 0 | D12: 0 | E12: 3265730 | F12: 0 | G12: 0 | H12: 0 | I12: 0 | J12: 12500 | K12: 0 | L12: 0 | M12: 12500 | N12: 3000 | O12: 0 | P12: 0 | Q12: 3000 | R12: 2000 | S12: 0 | T12: 0 | U12: 2000 | V12: 3248230 | W12: 0 | X12: 0 | Y12: 3248230
A13: 2025-06-22 | B13: =SUM(F13,J13,N13,R13,V13) -> 7394311 | C13: =SUM(G13,K13,O13,S13,W13) -> 0 | D13: 142063 | E13: 7536374 | F13: 0 | G13: 0 | H13: 0 | I13: 0 | J13: 24000 | K13: 0 | L13: 30000 | M13: 54000 | N13: 196200 | O13: 0 | P13: 17200 | Q13: 213400 | R13: 0 | S13: 0 | T13: 0 | U13: 0 | V13: 7174111 | W13: 0 | X13: 94863 | Y13: 7268974
A14: 2025-07-22 | B14: =SUM(F14,J14,N14,R14,V14) -> 5501141 | C14: 0 | D14: 61390 | E14: =SUM(B14:D14) -> 5562531 | F14: 0 | G14: 0 | H14: 0 | I14: 0 | J14: 7500 | K14: 0 | L14: 0 | M14: 7500 | N14: 23000 | O14: 0 | P14: 0 | Q14: 23000 | R14: 0 | S14: 0 | T14: 0 | U14: 0 | V14: 5470641 | W14: 0 | X14: 61390 | Y14: 5532031
A15: 2025-08-22 | B15: =SUM(F15,J15,N15,R15,V15) -> 3292501 | C15: =SUM(G15,K15,O15,S15,W15) -> 0 | D15: =SUM(H15,L15,P15,T15,X15) -> 300 | E15: =SUM(B15:D15) -> 3292801 | F15: 0 | G15: 0 | H15: 0 | I15: 0 | J15: 12500 | K15: 0 | L15: 0 | M15: 12500 | N15: 0 | O15: 0 | P15: 0 | Q15: 0 | R15: 4000 | S15: 0 | T15: 300 | U15: 4300 | V15: 3276001 | W15: 0 | X15: 0 | Y15: 3276001
A16: 2025-09-22 | B16: =SUM(F16,J16,N16,R16,V16) -> 2238408 | C16: =SUM(G16,K16,O16,S16,W16) -> 0 | D16: =SUM(H16,L16,P16,T16,X16) -> 154450 | E16: =SUM(B16:D16) -> 2392858 | F16: 0 | G16: 0 | H16: 0 | I16: 0 | J16: 61320 | K16: 0 | L16: 0 | M16: 61320 | N16: 60791 | O16: 0 | P16: 106000 | Q16: 166791 | R16: 0 | S16: =SUM(S33,S50,S67,S92) -> 0 | T16: 0 | U16: 0 | V16: 2116297 | W16: 0 | X16: 48450 | Y16: 2164747
A18: FT-D2 to FT-D2 Transfer Summary
A19: Total | F19: NW Alberta and NE BC | J19: NE Alberta | N19: Edmonton and Area | R19: SW Alberta | V19: SE Alberta
A20: Month | B20: Approved | C20: Denied | D20: Cancelled | E20: Total | F20: Approved | G20: Denied | H20: Cancelled | I20: Total | J20: Approved | K20: Denied | L20: Cancelled | M20: Total | N20: Approved | O20: Denied | P20: Cancelled | Q20: Total | R20: Approved | S20: Denied | T20: Cancelled | U20: Total | V20: Approved | W20: Denied | X20: Cancelled | Y20: Total
A21: 2024-09-22 | B21: =SUM(F21,J21,N21,R21,V21) -> 29780 | C21: =SUM(G21,K21,O21,S21,W21) -> 0 | D21: =SUM(H21,L21,P21,T21,X21) -> 0 | E21: =SUM(B21:D21) -> 29780 | F21: 40 | G21: 0 | H21: 0 | I21: =SUM(F21:H21) -> 40 | J21: 5000 | K21: 0 | L21: 0 | M21: =SUM(J21:L21) -> 5000 | N21: 3000 | O21: 0 | P21: 0 | Q21: =SUM(N21:P21) -> 3000 | R21: 0 | S21: 0 | T21: 0 | U21: =SUM(R21:T21) -> 0 | V21: 21740 | W21: 0 | X21: 0 | Y21: =SUM(V21:X21) -> 21740
A22: 2024-10-22 | B22: 59740 | C22: 25 | D22: 0 | E22: 59765 | F22: 0 | G22: 0 | H22: 0 | I22: 0 | J22: 20000 | K22: 0 | L22: 0 | M22: 20000 | N22: 6000 | O22: 25 | P22: 0 | Q22: 6025 | R22: 0 | S22: 0 | T22: 0 | U22: 0 | V22: 33740 | W22: 0 | X22: 0 | Y22: 33740
A23: 2024-11-22 | B23: 44150 | C23: 25 | D23: 0 | E23: 44175 | F23: 0 | G23: 0 | H23: 0 | I23: 0 | J23: 10000 | K23: 0 | L23: 0 | M23: 10000 | N23: 6000 | O23: 25 | P23: 0 | Q23: 6025 | R23: 0 | S23: 0 | T23: 0 | U23: 0 | V23: 28150 | W23: 0 | X23: 0 | Y23: 28150
A24: 2024-12-22 | B24: 47100 | C24: 0 | D24: 0 | E24: 47100 | F24: 0 | G24: 0 | H24: 0 | I24: 0 | J24: 12500 | K24: 0 | L24: 0 | M24: 12500 | N24: 9000 | O24: 0 | P24: 0 | Q24: 9000 | R24: 0 | S24: 0 | T24: 0 | U24: 0 | V24: 25600 | W24: 0 | X24: 0 | Y24: 25600
A25: 2025-01-22 | B25: 46740 | C25: 0 | D25: 0 | E25: 46740 | F25: 0 | G25: 0 | H25: 0 | I25: 0 | J25: 12500 | K25: 0 | L25: 0 | M25: 12500 | N25: 8000 | O25: 0 | P25: 0 | Q25: 8000 | R25: 0 | S25: 0 | T25: 0 | U25: 0 | V25: 26240 | W25: 0 | X25: 0 | Y25: 26240
A26: 2025-02-22 | B26: 38074 | C26: 0 | D26: 3000 | E26: 41074 | F26: 0 | G26: 0 | H26: 0 | I26: 0 | J26: 9500 | K26: 0 | L26: 3000 | M26: 12500 | N26: 7000 | O26: 0 | P26: 0 | Q26: 7000 | R26: 2774 | S26: 0 | T26: 0 | U26: 2774 | V26: 18800 | W26: 0 | X26: 0 | Y26: 18800
A27: 2025-03-22 | B27: 39740 | C27: 0 | D27: 0 | E27: 39740 | F27: 0 | G27: 0 | H27: 0 | I27: 0 | J27: 12500 | K27: 0 | L27: 0 | M27: 12500 | N27: 3000 | O27: 0 | P27: 0 | Q27: 3000 | R27: 0 | S27: 0 | T27: 0 | U27: 0 | V27: 24240 | W27: 0 | X27: 0 | Y27: 24240
A28: 2025-04-22 | B28: =SUM(F28,J28,N28,R28,V28) -> 54450 | C28: =SUM(G28,K28,O28,S28,W28) -> 0 | D28: =SUM(H28,L28,P28,T28,X28) -> 10900 | E28: =SUM(B28:D28) -> 65350 | F28: 0 | G28: 0 | H28: 0 | I28: =SUM(F28:H28) -> 0 | J28: 45000 | K28: 0 | L28: 0 | M28: =SUM(J28:L28) -> 45000 | N28: 4000 | O28: 0 | P28: 0 | Q28: =SUM(N28:P28) -> 4000 | R28: 0 | S28: 0 | T28: 0 | U28: =SUM(R28:T28) -> 0 | V28: 5450 | W28: 0 | X28: 10900 | Y28: =SUM(V28:X28) -> 16350
A29: 2025-05-22 | B29: 51550 | C29: 0 | D29: 0 | E29: 51550 | F29: 0 | G29: 0 | H29: 0 | I29: 0 | J29: 12500 | K29: 0 | L29: 0 | M29: 12500 | N29: 3000 | O29: 0 | P29: 0 | Q29: 3000 | R29: 2000 | S29: 0 | T29: 0 | U29: 2000 | V29: 34050 | W29: 0 | X29: 0 | Y29: 34050
A30: 2025-06-22 | B30: 276550 | C30: 0 | D30: 47200 | E30: 323750 | F30: 0 | G30: 0 | H30: 0 | I30: 0 | J30: 24000 | K30: 0 | L30: 30000 | M30: 54000 | N30: 196200 | O30: 0 | P30: 17200 | Q30: 213400 | R30: 0 | S30: 0 | T30: 0 | U30: 0 | V30: 56350 | W30: 0 | X30: 0 | Y30: 56350
A31: 2025-07-22 | B31: =SUM(F31,J31,N31,R31,V31) -> 73100 | C31: =SUM(G31,K31,O31,S31,W31) -> 0 | D31: =SUM(H31,L31,P31,T31,X31) -> 0 | E31: =SUM(B31:D31) -> 73100 | F31: 0 | G31: 0 | H31: 0 | I31: =SUM(F31:H31) -> 0 | J31: 7500 | K31: 0 | L31: 0 | M31: =SUM(J31:L31) -> 7500 | N31: 23000 | O31: 0 | P31: 0 | Q31: =SUM(N31:P31) -> 23000 | R31: 0 | S31: 0 | T31: 0 | U31: =SUM(R31:T31) -> 0 | V31: 42600 | W31: 0 | X31: 0 | Y31: =SUM(V31:X31) -> 42600
A32: 2025-08-22 | B32: =SUM(F32,J32,N32,R32,V32) -> 31200 | C32: =SUM(G32,K32,O32,S32,W32) -> 0 | D32: =SUM(H32,L32,P32,T32,X32) -> 0 | E32: =SUM(B32:D32) -> 31200 | F32: 0 | G32: 0 | H32: 0 | I32: =SUM(F32:H32) -> 0 | J32: 12500 | K32: 0 | L32: 0 | M32: =SUM(J32:L32) -> 12500 | N32: 0 | O32: 0 | P32: 0 | Q32: =SUM(N32:P32) -> 0 | R32: 0 | S32: 0 | T32: 0 | U32: =SUM(R32:T32) -> 0 | V32: 18700 | W32: 0 | X32: 0 | Y32: =SUM(V32:X32) -> 18700
A33: 2025-09-22 | B33: =SUM(F33,J33,N33,R33,V33) -> 197511 | C33: =SUM(G33,K33,O33,S33,W33) -> 0 | D33: =SUM(H33,L33,P33,T33,X33) -> 154450 | E33: =SUM(B33:D33) -> 351961 | F33: 0 | G33: 0 | H33: 0 | I33: =SUM(F33:H33) -> 0 | J33: 61320 | K33: 0 | L33: 0 | M33: =SUM(J33:L33) -> 61320 | N33: 60791 | O33: 0 | P33: 106000 | Q33: =SUM(N33:P33) -> 166791 | R33: 0 | S33: 0 | T33: 0 | U33: =SUM(R33:T33) -> 0 | V33: 75400 | W33: 0 | X33: 48450 | Y33: =SUM(V33:X33) -> 123850
A35: FT-D3 to FT-D3 Transfer Summary
A36: Total | F36: NW Alberta and NE BC | J36: NE Alberta | N36: Edmonton and Area | R36: SW Alberta | V36: SE Alberta
A37: Month | B37: Approved | C37: Denied | D37: Cancelled | E37: Total | F37: Approved | G37: Denied | H37: Cancelled | I37: Total | J37: Approved | K37: Denied | L37: Cancelled | M37: Total | N37: Approved | O37: Denied | P37: Cancelled | Q37: Total | R37: Approved | S37: Denied | T37: Cancelled | U37: Total | V37: Approved | W37: Denied | X37: Cancelled | Y37: Total
A38: 2024-09-22 | B38: =SUM(F38,J38,N38,R38,V38) -> 0 | C38: =SUM(G38,K38,O38,S38,W38) -> 0 | D38: =SUM(H38,L38,P38,T38,X38) -> 0 | E38: =SUM(B38:D38) -> 0 | F38: 0 | G38: 0 | H38: 0 | I38: =SUM(F38:H38) -> 0 | J38: 0 | K38: 0 | L38: 0 | M38: =SUM(J38:L38) -> 0 | N38: 0 | O38: 0 | P38: 0 | Q38: =SUM(N38:P38) -> 0 | R38: 0 | S38: 0 | T38: 0 | U38: =SUM(R38:T38) -> 0 | V38: 0 | W38: 0 | X38: 0 | Y38: 0
A39: 2024-10-22 | B39: 0 | C39: 0 | D39: 0 | E39: 0 | F39: 0 | G39: 0 | H39: 0 | I39: 0 | J39: 0 | K39: 0 | L39: 0 | M39: 0 | N39: 0 | O39: 0 | P39: 0 | Q39: 0 | R39: 0 | S39: 0 | T39: 0 | U39: 0 | V39: 0 | W39: 0 | X39: 0 | Y39: 0
A40: 2024-11-22 | B40: 0 | C40: 0 | D40: 0 | E40: 0 | F40: 0 | G40: 0 | H40: 0 | I40: 0 | J40: 0 | K40: 0 | L40: 0 | M40: 0 | N40: 0 | O40: 0 | P40: 0 | Q40: 0 | R40: 0 | S40: 0 | T40: 0 | U40: 0 | V40: 0 | W40: 0 | X40: 0 | Y40: 0
A41: 2024-12-22 | B41: 0 | C41: 0 | D41: 0 | E41: 0 | F41: 0 | G41: 0 | H41: 0 | I41: 0 | J41: 0 | K41: 0 | L41: 0 | M41: 0 | N41: 0 | O41: 0 | P41: 0 | Q41: 0 | R41: 0 | S41: 0 | T41: 0 | U41: 0 | V41: 0 | W41: 0 | X41: 0 | Y41: 0
A42: 2025-01-22 | B42: 200 | C42: 0 | D42: 0 | E42: 200 | F42: 0 | G42: 0 | H42: 0 | I42: 0 | J42: 0 | K42: 0 | L42: 0 | M42: 0 | N42: 200 | O42: 0 | P42: 0 | Q42: 200 | R42: 0 | S42: 0 | T42: 0 | U42: 0 | V42: 0 | W42: 0 | X42: 0 | Y42: 0
A43: 2025-02-22 | B43: 0 | C43: 0 | D43: 0 | E43: 0 | F43: 0 | G43: 0 | H43: 0 | I43: 0 | J43: 0 | K43: 0 | L43: 0 | M43: 0 | N43: 0 | O43: 0 | P43: 0 | Q43: 0 | R43: 0 | S43: 0 | T43: 0 | U43: 0 | V43: 0 | W43: 0 | X43: 0 | Y43: 0
A44: 2025-03-22 | B44: 0 | C44: 0 | D44: 0 | E44: 0 | F44: 0 | G44: 0 | H44: 0 | I44: 0 | J44: 0 | K44: 0 | L44: 0 | M44: 0 | N44: 0 | O44: 0 | P44: 0 | Q44: 0 | R44: 0 | S44: 0 | T44: 0 | U44: 0 | V44: 0 | W44: 0 | X44: 0 | Y44: 0
A45: 2025-04-22 | B45: =SUM(F45,J45,N45,R45,V45) -> 0 | C45: =SUM(G45,K45,O45,S45,W45) -> 0 | D45: =SUM(H45,L45,P45,T45,X45) -> 0 | E45: =SUM(B45:D45) -> 0 | F45: 0 | G45: 0 | H45: 0 | I45: =SUM(F45:H45) -> 0 | J45: 0 | K45: 0 | L45: 0 | M45: =SUM(J45:L45) -> 0 | N45: 0 | O45: 0 | P45: 0 | Q45: =SUM(N45:P45) -> 0 | R45: 0 | S45: 0 | T45: 0 | U45: =SUM(R45:T45) -> 0 | V45: 0 | W45: 0 | X45: 0 | Y45: 0
A46: 2025-05-22 | B46: 0 | C46: 0 | D46: 0 | E46: 0 | F46: 0 | G46: 0 | H46: 0 | I46: 0 | J46: 0 | K46: 0 | L46: 0 | M46: 0 | N46: 0 | O46: 0 | P46: 0 | Q46: 0 | R46: 0 | S46: 0 | T46: 0 | U46: 0 | V46: 0 | W46: 0 | X46: 0 | Y46: 0
A47: 2025-06-22 | B47: 0 | C47: 0 | D47: 0 | E47: 0 | F47: 0 | G47: 0 | H47: 0 | I47: 0 | J47: 0 | K47: 0 | L47: 0 | M47: 0 | N47: 0 | O47: 0 | P47: 0 | Q47: 0 | R47: 0 | S47: 0 | T47: 0 | U47: 0 | V47: 0 | W47: 0 | X47: 0 | Y47: 0
A48: 2025-07-22 | B48: =SUM(F48,J48,N48,R48,V48) -> 0 | C48: =SUM(G48,K48,O48,S48,W48) -> 0 | D48: =SUM(H48,L48,P48,T48,X48) -> 0 | E48: =SUM(B48:D48) -> 0 | F48: 0 | G48: 0 | H48: 0 | I48: =SUM(F48:H48) -> 0 | J48: 0 | K48: 0 | L48: 0 | M48: =SUM(J48:L48) -> 0 | N48: 0 | O48: 0 | P48: 0 | Q48: =SUM(N48:P48) -> 0 | R48: 0 | S48: 0 | T48: 0 | U48: =SUM(R48:T48) -> 0 | V48: 0 | W48: 0 | X48: 0 | Y48: 0
A49: 2025-08-22 | B49: =SUM(F49,J49,N49,R49,V49) -> 0 | C49: =SUM(G49,K49,O49,S49,W49) -> 0 | D49: =SUM(H49,L49,P49,T49,X49) -> 0 | E49: =SUM(B49:D49) -> 0 | F49: 0 | G49: 0 | H49: 0 | I49: =SUM(F49:H49) -> 0 | J49: 0 | K49: 0 | L49: 0 | M49: =SUM(J49:L49) -> 0 | N49: 0 | O49: 0 | P49: 0 | Q49: =SUM(N49:P49) -> 0 | R49: 0 | S49: 0 | T49: 0 | U49: =SUM(R49:T49) -> 0 | V49: 0 | W49: 0 | X49: 0 | Y49: 0
A50: 2025-09-22 | B50: =SUM(F50,J50,N50,R50,V50) -> 0 | C50: =SUM(G50,K50,O50,S50,W50) -> 0 | D50: =SUM(H50,L50,P50,T50,X50) -> 0 | E50: =SUM(B50:D50) -> 0 | F50: 0 | G50: 0 | H50: 0 | I50: =SUM(F50:H50) -> 0 | J50: 0 | K50: 0 | L50: 0 | M50: =SUM(J50:L50) -> 0 | N50: 0 | O50: 0 | P50: 0 | Q50: =SUM(N50:P50) -> 0 | R50: 0 | S50: 0 | T50: 0 | U50: =SUM(R50:T50) -> 0 | V50: 0 | W50: 0 | X50: 0 | Y50: 0
A52: FT-D1 to FT-D2 Transfer Summary
A53: Total | F53: NW Alberta and NE BC | J53: NE Alberta | N53: Edmonton and Area | R53: SW Alberta | V53: SE Alberta
A54: Month | B54: Approved | C54: Denied | D54: Cancelled | E54: Total | F54: Approved | G54: Denied | H54: Cancelled | I54: Total | J54: Approved | K54: Denied | L54: Cancelled | M54: Total | N54: Approved | O54: Denied | P54: Cancelled | Q54: Total | R54: Approved | S54: Denied | T54: Cancelled | U54: Total | V54: Approved | W54: Denied | X54: Cancelled | Y54: Total
A55: 2024-09-22 | B55: =SUM(F55,J55,N55,R55,V55) -> 0 | C55: =SUM(G55,K55,O55,S55,W55) -> 0 | D55: =SUM(H55,L55,P55,T55,X55) -> 0 | E55: =SUM(I55,M55,Q55,U55,Y55) -> 0 | F55: 0 | G55: 0 | H55: 0 | I55: =SUM(F55:H55) -> 0 | J55: 0 | K55: 0 | L55: 0 | M55: =SUM(J55:L55) -> 0 | N55: 0 | O55: 0 | P55: 0 | Q55: =SUM(N55:P55) -> 0 | R55: 0 | S55: 0 | T55: 0 | U55: =SUM(R55:T55) -> 0 | V55: 0 | W55: 0 | X55: 0 | Y55: =SUM(V55:X55) -> 0
A56: 2024-10-22 | B56: 0 | C56: 0 | D56: 0 | E56: 0 | F56: 0 | G56: 0 | H56: 0 | I56: 0 | J56: 0 | K56: 0 | L56: 0 | M56: 0 | N56: 0 | O56: 0 | P56: 0 | Q56: 0 | R56: 0 | S56: 0 | T56: 0 | U56: 0 | V56: 0 | W56: 0 | X56: 0 | Y56: 0
A57: 2024-11-22 | B57: 0 | C57: 0 | D57: 0 | E57: 0 | F57: 0 | G57: 0 | H57: 0 | I57: 0 | J57: 0 | K57: 0 | L57: 0 | M57: 0 | N57: 0 | O57: 0 | P57: 0 | Q57: 0 | R57: 0 | S57: 0 | T57: 0 | U57: 0 | V57: 0 | W57: 0 | X57: 0 | Y57: 0
A58: 2024-12-22 | B58: 0 | C58: 0 | D58: 0 | E58: 0 | F58: 0 | G58: 0 | H58: 0 | I58: 0 | J58: 0 | K58: 0 | L58: 0 | M58: 0 | N58: 0 | O58: 0 | P58: 0 | Q58: 0 | R58: 0 | S58: 0 | T58: 0 | U58: 0 | V58: 0 | W58: 0 | X58: 0 | Y58: 0
A59: 2025-01-22 | B59: 0 | C59: 0 | D59: 0 | E59: 0 | F59: 0 | G59: 0 | H59: 0 | I59: 0 | J59: 0 | K59: 0 | L59: 0 | M59: 0 | N59: 0 | O59: 0 | P59: 0 | Q59: 0 | R59: 0 | S59: 0 | T59: 0 | U59: 0 | V59: 0 | W59: 0 | X59: 0 | Y59: 0
A60: 2025-02-22 | B60: 0 | C60: 0 | D60: 0 | E60: 0 | F60: 0 | G60: 0 | H60: 0 | I60: 0 | J60: 0 | K60: 0 | L60: 0 | M60: 0 | N60: 0 | O60: 0 | P60: 0 | Q60: 0 | R60: 0 | S60: 0 | T60: 0 | U60: 0 | V60: 0 | W60: 0 | X60: 0 | Y60: 0
A61: 2025-03-22 | B61: 0 | C61: 0 | D61: 0 | E61: 0 | F61: 0 | G61: 0 | H61: 0 | I61: 0 | J61: 0 | K61: 0 | L61: 0 | M61: 0 | N61: 0 | O61: 0 | P61: 0 | Q61: 0 | R61: 0 | S61: 0 | T61: 0 | U61: 0 | V61: 0 | W61: 0 | X61: 0 | Y61: 0
A62: 2025-04-22 | B62: =SUM(F62,J62,N62,R62,V62) -> 0 | C62: =SUM(G62,K62,O62,S62,W62) -> 0 | D62: =SUM(H62,L62,P62,T62,X62) -> 0 | E62: =SUM(I62,M62,Q62,U62,Y62) -> 0 | F62: 0 | G62: 0 | H62: 0 | I62: =SUM(F62:H62) -> 0 | J62: 0 | K62: 0 | L62: 0 | M62: =SUM(J62:L62) -> 0 | N62: 0 | O62: 0 | P62: 0 | Q62: =SUM(N62:P62) -> 0 | R62: 0 | S62: 0 | T62: 0 | U62: =SUM(R62:T62) -> 0 | V62: 0 | W62: 0 | X62: 0 | Y62: =SUM(V62:X62) -> 0
A63: 2025-05-22 | B63: 0 | C63: 0 | D63: 0 | E63: 0 | F63: 0 | G63: 0 | H63: 0 | I63: 0 | J63: 0 | K63: 0 | L63: 0 | M63: 0 | N63: 0 | O63: 0 | P63: 0 | Q63: 0 | R63: 0 | S63: 0 | T63: 0 | U63: 0 | V63: 0 | W63: 0 | X63: 0 | Y63: 0
A64: 2025-06-22 | B64: 241887 | C64: 0 | D64: 1086 | E64: 242973 | F64: 0 | G64: 0 | H64: 0 | I64: 0 | J64: 0 | K64: 0 | L64: 0 | M64: 0 | N64: 0 | O64: 0 | P64: 0 | Q64: 0 | R64: 0 | S64: 0 | T64: 0 | U64: 0 | V64: 241887 | W64: 0 | X64: 1086 | Y64: 242973
A65: 2025-07-22 | B65: =SUM(F65,J65,N65,R65,V65) -> 301663 | C65: =SUM(G65,K65,O65,S65,W65) -> 0 | D65: =SUM(H65,L65,P65,T65,X65) -> 0 | E65: =SUM(I65,M65,Q65,U65,Y65) -> 301663 | F65: 0 | G65: 0 | H65: 0 | I65: =SUM(F65:H65) -> 0 | J65: 0 | K65: 0 | L65: 0 | M65: =SUM(J65:L65) -> 0 | N65: 0 | O65: 0 | P65: 0 | Q65: =SUM(N65:P65) -> 0 | R65: 0 | S65: 0 | T65: 0 | U65: =SUM(R65:T65) -> 0 | V65: 301663 | W65: 0 | X65: 0 | Y65: =SUM(V65:X65) -> 301663
A66: 2025-08-22 | B66: =SUM(F66,J66,N66,R66,V66) -> 0 | C66: =SUM(G66,K66,O66,S66,W66) -> 0 | D66: =SUM(H66,L66,P66,T66,X66) -> 0 | E66: =SUM(I66,M66,Q66,U66,Y66) -> 0 | F66: 0 | G66: 0 | H66: 0 | I66: =SUM(F66:H66) -> 0 | J66: 0 | K66: 0 | L66: 0 | M66: =SUM(J66:L66) -> 0 | N66: 0 | O66: 0 | P66: 0 | Q66: =SUM(N66:P66) -> 0 | R66: 0 | S66: 0 | T66: 0 | U66: =SUM(R66:T66) -> 0 | V66: 0 | W66: 0 | X66: 0 | Y66: =SUM(V66:X66) -> 0
A67: 2025-09-22 | B67: =SUM(F67,J67,N67,R67,V67) -> 0 | C67: =SUM(G67,K67,O67,S67,W67) -> 0 | D67: =SUM(H67,L67,P67,T67,X67) -> 0 | E67: =SUM(I67,M67,Q67,U67,Y67) -> 0 | F67: 0 | G67: 0 | H67: 0 | I67: =SUM(F67:H67) -> 0 | J67: 0 | K67: 0 | L67: 0 | M67: =SUM(J67:L67) -> 0 | N67: 0 | O67: 0 | P67: 0 | Q67: =SUM(N67:P67) -> 0 | R67: 0 | S67: 0 | T67: 0 | U67: =SUM(R67:T67) -> 0 | V67: 0 | W67: 0 | X67: 0 | Y67: =SUM(V67:X67) -> 0
A77: FT-D2 to FT-D1 Transfer Summary
A78: Total | F78: NW Alberta and NE BC | J78: NE Alberta | N78: Edmonton and Area | R78: SW Alberta | V78: SE Alberta
A79: Month | B79: Approved | C79: Denied | D79: Cancelled | E79: Total | F79: Approved | G79: Denied | H79: Cancelled | I79: Total | J79: Approved | K79: Denied | L79: Cancelled | M79: Total | N79: Approved | O79: Denied | P79: Cancelled | Q79: Total | R79: Approved | S79: Denied | T79: Cancelled | U79: Total | V79: Approved | W79: Denied | X79: Cancelled | Y79: Total
A80: 2024-09-22 | B80: =SUM(F80,J80,N80,R80,V80) -> 0 | C80: =SUM(G80,K80,O80,S80,W80) -> 0 | D80: =SUM(H80,L80,P80,T80,X80) -> 0 | E80: =SUM(B80:D80) -> 0 | F80: 0 | G80: 0 | H80: 0 | I80: =SUM(F80:H80) -> 0 | J80: 0 | K80: 0 | L80: 0 | M80: =SUM(J80:L80) -> 0 | N80: 0 | O80: 0 | P80: 0 | Q80: =SUM(N80:P80) -> 0 | R80: 0 | S80: 0 | T80: 0 | U80: 0 | V80: 0 | W80: 0 | X80: 0 | Y80: 0
A81: 2024-10-22 | B81: 0 | C81: 0 | D81: 0 | E81: 0 | F81: 0 | G81: 0 | H81: 0 | I81: 0 | J81: 0 | K81: 0 | L81: 0 | M81: 0 | N81: 0 | O81: 0 | P81: 0 | Q81: 0 | R81: 0 | S81: 0 | T81: 0 | U81: 0 | V81: 0 | W81: 0 | X81: 0 | Y81: 0
A82: 2024-11-22 | B82: 45000 | C82: 0 | D82: 0 | E82: 45000 | F82: 0 | G82: 0 | H82: 0 | I82: 0 | J82: 0 | K82: 0 | L82: 0 | M82: 0 | N82: 0 | O82: 0 | P82: 0 | Q82: 0 | R82: 10000 | S82: 0 | T82: 0 | U82: =SUM(R82,S82,T82) -> 10000 | V82: 35000 | W82: 0 | X82: 0 | Y82: =SUM(V82,W82,X82) -> 35000
A83: 2024-12-22 | B83: 45000 | C83: 0 | D83: 0 | E83: 45000 | F83: 0 | G83: 0 | H83: 0 | I83: 0 | J83: 0 | K83: 0 | L83: 0 | M83: 0 | N83: 0 | O83: 0 | P83: 0 | Q83: 0 | R83: 10000 | S83: 0 | T83: 0 | U83: =SUM(R83,S83,T83) -> 10000 | V83: 35000 | W83: 0 | X83: 0 | Y83: =SUM(V83,W83,X83) -> 35000
A84: 2025-01-22 | B84: 45000 | C84: 0 | D84: 0 | E84: 45000 | F84: 0 | G84: 0 | H84: 0 | I84: 0 | J84: 0 | K84: 0 | L84: 0 | M84: 0 | N84: 0 | O84: 0 | P84: 0 | Q84: 0 | R84: 10000 | S84: 0 | T84: 0 | U84: =SUM(R84,S84,T84) -> 10000 | V84: 35000 | W84: 0 | X84: 0 | Y84: =SUM(V84,W84,X84) -> 35000
A85: 2025-02-22 | B85: 5400 | C85: =SUM(G85,K85,O85,S85,W85) -> 0 | D85: 0 | E85: 5400 | F85: 0 | G85: 0 | H85: 0 | I85: 0 | J85: 0 | K85: 0 | L85: 0 | M85: 0 | N85: 0 | O85: 0 | P85: 0 | Q85: 0 | R85: 5400 | S85: 0 | T85: 0 | U85: =SUM(R85:T85) -> 5400 | V85: 0 | W85: 0 | X85: 0 | Y85: =SUM(V85:X85) -> 0
A86: 2025-03-25 | B86: =SUM(F86,J86,N86,R86,V86) -> 17874 | C86: =SUM(G86,K86,O86,S86,W86) -> 0 | D86: =SUM(H86,L86,P86,T86,X86) -> 0 | E86: =SUM(B86:D86) -> 17874 | F86: 0 | G86: 0 | H86: 0 | I86: =SUM(F86:H86) -> 0 | J86: 0 | K86: 0 | L86: 0 | M86: =SUM(J86:L86) -> 0 | N86: 0 | O86: 0 | P86: 0 | Q86: =SUM(N86:P86) -> 0 | R86: 17874 | S86: 0 | T86: 0 | U86: =SUM(R86:T86) -> 17874 | V86: 0 | W86: 0 | X86: 0 | Y86: =SUM(V86:X86) -> 0
A87: 2025-04-22 | B87: =SUM(F87,J87,N87,R87,V87) -> 20500 | C87: =SUM(G87,K87,O87,S87,W87) -> 0 | D87: =SUM(H87,L87,P87,T87,X87) -> 0 | E87: =SUM(B87:D87) -> 20500 | F87: 0 | G87: 0 | H87: 0 | I87: =SUM(F87:H87) -> 0 | J87: 0 | K87: 0 | L87: 0 | M87: =SUM(J87:L87) -> 0 | N87: 0 | O87: 0 | P87: 0 | Q87: =SUM(N87:P87) -> 0 | R87: 20500 | S87: 0 | T87: 0 | U87: 0 | V87: 0 | W87: 0 | X87: 0 | Y87: 0
A88: 2025-05-22 | B88: =SUM(F88,J88,N88,R88,V88) -> 0 | C88: 0 | D88: =SUM(H88,L88,P88,T88,X88) -> 0 | E88: =SUM(B88:D88) -> 0 | F88: 0 | G88: 0 | H88: 0 | I88: 0 | J88: 0 | K88: 0 | L88: 0 | M88: 0 | N88: 0 | O88: 0 | P88: 0 | Q88: 0 | R88: 0 | S88: 0 | T88: 0 | U88: 0 | V88: 0 | W88: 0 | X88: 0 | Y88: 0
A89: 2025-06-22 | B89: 0 | C89: 0 | D89: 0 | E89: =SUM(B89:D89) -> 0 | F89: 0 | G89: 0 | H89: 0 | I89: 0 | J89: 0 | K89: 0 | L89: 0 | M89: 0 | N89: 0 | O89: 0 | P89: 0 | Q89: 0 | R89: 0 | S89: 0 | T89: 0 | U89: 0 | V89: 0 | W89: 0 | X89: 0 | Y89: 0
A90: 2025-07-22 | B90: 0 | C90: 0 | D90: 0 | E90: =SUM(B90:D90) -> 0 | F90: 0 | G90: 0 | H90: 0 | I90: =SUM(F90:H90) -> 0 | J90: 0 | K90: 0 | L90: 0 | M90: =SUM(J90:L90) -> 0 | N90: 0 | O90: 0 | P90: 0 | Q90: =SUM(N90:P90) -> 0 | R90: 0 | S90: 0 | T90: 0 | U90: 0 | V90: 0 | W90: 0 | X90: 0 | Y90: 0
A91: 2025-08-22 | B91: =SUM(F91,J91,N91,R91,V91) -> 4000 | C91: =SUM(G91,K91,O91,S91,W91) -> 0 | D91: =SUM(H91,L91,P91,T91,X91) -> 300 | E91: =SUM(B91:D91) -> 4300 | F91: 0 | G91: 0 | H91: 0 | I91: =SUM(F91:H91) -> 0 | J91: 0 | K91: 0 | L91: 0 | M91: =SUM(J91:L91) -> 0 | N91: 0 | O91: 0 | P91: 0 | Q91: =SUM(N91:P91) -> 0 | R91: 4000 | S91: 0 | T91: 300 | U91: 0 | V91: 0 | W91: 0 | X91: 0 | Y91: 0
A92: 2025-09-22 | B92: 0 | C92: =SUM(G92,K92,O92,S92,W92) -> 0 | D92: 0 | E92: =SUM(B92:D92) -> 0 | F92: 0 | G92: 0 | H92: 0 | I92: =SUM(F92:H92) -> 0 | J92: 0 | K92: 0 | L92: 0 | M92: =SUM(J92:L92) -> 0 | N92: 0 | O92: 0 | P92: 0 | Q92: =SUM(N92:P92) -> 0 | R92: 0 | S92: 0 | T92: 0 | U92: 0 | V92: 0 | W92: 0 | X92: 0 | Y92: 0
A95: FT-D1 to FT-D1 Transfer Summary
A96: Empress to McNeill FT-D1 | H96: McNeill to Empress FT-D1
A97: Month | B97: Approved (Manual) | C97: Approved (ATP) | D97: Denied | E97: Cancelled | F97: Total | H97: Month | I97: Approved (Manual) | J97: Approved (ATP) | K97: Denied | L97: Cancelled | M97: Total
A98: 2024-09-22 | B98: 160811 | C98: 159061 | D98: 0 | E98: 0 | F98: =SUM(B98:E98) -> 319872 | H98: 2024-09-22 | I98: 794345 | J98: 301130 | K98: 0 | L98: 6000 | M98: =SUM(I98:L98) -> 1101475
A99: 2024-10-22 | B99: 95576 | C99: 469356 | D99: 0 | E99: 0 | F99: 564932 | H99: 2024-10-22 | I99: 167182 | J99: 549261 | K99: 0 | L99: 0 | M99: 716443
A100: 2024-11-22 | B100: 95576 | C100: 469356 | D100: 0 | E100: 0 | F100: 564932 | H100: 2024-11-22 | I100: 167182 | J100: 549261 | K100: 0 | L100: 0 | M100: 716443
A101: 2024-12-22 | B101: 143847 | C101: 17400 | D101: 0 | E101: 0 | F101: 161247 | H101: 2024-12-22 | I101: 549451 | J101: 859973 | K101: 0 | L101: 0 | M101: 1409424
A102: 2025-01-22 | B102: 62300 | C102: 562519 | D102: 0 | E102: 14489 | F102: 639308 | H102: 2025-01-22 | I102: 669188 | J102: 516391 | K102: 0 | L102: 0 | M102: 1185579
A103: 2025-02-22 | B103: 0 | C103: 1596721 | D103: 0 | E103: 14489 | F103: 1611210 | H103: 2025-02-22 | I103: 0 | J103: 274567 | K103: 0 | L103: 0 | M103: 274567
A104: 2025-03-22 | B104: 145000 | C104: 511894 | D104: 0 | E104: 0 | F104: =SUM(B104:E104) -> 656894 | H104: 2025-03-22 | I104: 169763 | J104: 619620 | K104: 0 | L104: 0 | M104: =SUM(I104:L104) -> 789383
A105: 2025-04-22 | B105: 0 | C105: 680248 | D105: 0 | E105: 0 | F105: 680248 | H105: 2025-04-22 | I105: 0 | J105: 646908 | K105: 0 | L105: 0 | M105: 646908
A106: 2025-05-22 | B106: 215856 | C106: 1961276 | D106: 0 | E106: 0 | F106: 2177132 | H106: 2025-05-22 | I106: 17378 | J106: 1019670 | K106: 0 | L106: 0 | M106: 1037048
A107: 2025-06-22 | B107: 574303 | C107: 3040706 | D107: 0 | E107: 93777 | F107: 3708786 | H107: 2025-06-22 | I107: 1446284 | J107: 1814581 | K107: 0 | L107: 0 | M107: 3260865
A108: 2025-07-22 | B108: 443085 | C108: 1913835 | D108: 0 | E108: 61390 | F108: =SUM(B108:E108) -> 2418310 | H108: 2025-07-22 | I108: 1624565 | J108: 1144893 | K108: 0 | L108: 0 | M108: =SUM(I108:L108) -> 2769458
A109: 2025-08-22 | B109: 0 | C109: 2724891 | D109: 0 | E109: 0 | F109: =SUM(B109:E109) -> 2724891 | H109: 2025-08-22 | I109: 0 | J109: 532410 | K109: 0 | L109: 0 | M109: =SUM(I109:L109) -> 532410
A110: 2025-09-22 | B110: 0 | C110: 1393422 | D110: 0 | E110: 0 | F110: =SUM(B110:E110) -> 1393422 | H110: 2025-08-22 | I110: 572577 | J110: 74898 | K110: 0 | L110: 0 | M110: =SUM(I110:L110) -> 647475
A113: Cross Boundary Transfers
A114: Month | B114: Volume (GJ/d) | D114: Information
A115: 2024-09-01 | B115: N/A | D115: N/A
A116: 2024-10-01 | B116: 25 | D116: Requested one-way FT-D2 transfer volume from NW Alberta and NE B.C. Area to Edmonton and Area was denied
A117: 2024-11-01 | B117: N/A | D117: N/A
A118: 2024-12-01 | B118: N/A | D118: N/A
A119: 2025-01-01 | B119: N/A | D119: N/A
A120: 2025-02-01 | B120: N/A | D120: N/A
A121: 2025-03-01 | B121: N/A | D121: N/A
A122: 2025-04-01 | B122: N/A | D122: N/A
A123: 2025-05-01 | B123: N/A | D123: N/A
A124: 2025-06-01 | B124: N/A | D124: N/A
A125: 2025-07-01 | B125: N/A | D125: N/A
A126: 2025-08-01 | B126: N/A | D126: N/A
A127: 2025-09-01 | B127: N/A | D127: N/A
A128: Notes:
A129: 1. Values represent the total volume (GJ/d) of transfer requests processed in the specified month, regardless of effective date
A130: 2. Includes all "out and back" and "one-way" transfers
A131: 3. Out and back transfer requests are tallied as a single transaction
A132: 4. Transfers to storage are not included in totals
A133: 5. Transfers that cross a Delivery Design Area boundary are tallied in the area where the "To" location is situated
A134: 6. Cancelled transfer requests are initiated by the requester (customer, marketer etc.)
A135: 7. ATP is the acronym for Automated Transfer Process, requests that meet certain criteria may be approved automatically
A136: 8. Delivery Design Area boundaries are illustrated in the Design Methodology document on Customer Express (see NGTL/Regulatory/Facilities)
A137: http://www.tccustomerexpress.com/docs/ab_regulatory_facilities/Facilities%20Design%20Methodology%20Document%20-%20Revision%20May%2031,%202018_Oct%204.pdf

Sheet Transfers to Storage
A1: Transfers to Storage - Frequency
B2: FT-R | G2: FT-D1 | L2: FT-D2
A3: Month | B3: Approved (Manual) | C3: Approved (ATP) | D3: Denied | E3: Cancelled | F3: Total | G3: Approved (Manual) | H3: Approved (ATP) | I3: Denied | J3: Cancelled | K3: Total | L3: Approved (Manual) | M3: Approved (ATP) | N3: Denied | O3: Cancelled | P3: Total
A4: 2024-09-22 | B4: 1 | C4: 0 | D4: 0 | E4: 0 | F4: =SUM(B4:E4) -> 1 | G4: 0 | H4: 0 | I4: 0 | J4: 0 | K4: =SUM(G4:J4) -> 0 | L4: 1 | M4: 0 | N4: 0 | O4: 0 | P4: =SUM(L4:O4) -> 1
A5: 2024-10-22 | B5: 0 | C5: 0 | D5: 0 | E5: 0 | F5: 0 | G5: 0 | H5: 0 | I5: 0 | J5: 0 | K5: 0 | L5: 0 | M5: 0 | N5: 0 | O5: 0 | P5: 0
A6: 2024-11-22 | B6: 0 | C6: 4 | D6: 0 | E6: 0 | F6: 4 | G6: 0 | H6: 0 | I6: 0 | J6: 0 | K6: 0 | L6: 0 | M6: 0 | N6: 0 | O6: 0 | P6: 0
A7: 2024-12-22 | B7: 0 | C7: 0 | D7: 0 | E7: 0 | F7: 0 | G7: 0 | H7: 0 | I7: 0 | J7: 0 | K7: 0 | L7: 0 | M7: 0 | N7: 0 | O7: 0 | P7: 0
A8: 2025-01-22 | B8: 0 | C8: 25 | D8: 0 | E8: 5 | F8: 30 | G8: 0 | H8: 0 | I8: 0 | J8: 0 | K8: 0 | L8: 0 | M8: 0 | N8: 0 | O8: 0 | P8: 0
A9: 2025-02-22 | B9: 0 | C9: 17 | D9: 0 | E9: 0 | F9: 17 | G9: 0 | H9: 0 | I9: 0 | J9: 0 | K9: 0 | L9: 0 | M9: 0 | N9: 0 | O9: 0 | P9: 0
A10: 2025-03-22 | B10: 0 | C10: 2 | D10: 0 | E10: 0 | F10: 2 | G10: 0 | H10: 0 | I10: 0 | J10: 0 | K10: 0 | L10: 0 | M10: 0 | N10: 0 | O10: 0 | P10: 0
A11: 2025-04-22 | B11: 0 | C11: 0 | D11: 0 | E11: 0 | F11: =SUM(B11:E11) -> 0 | G11: 0 | H11: 0 | I11: 0 | J11: 0 | K11: =SUM(G11:J11) -> 0 | L11: 1 | M11: 0 | N11: 0 | O11: 0 | P11: =SUM(L11:O11) -> 1
A12: 2025-05-22 | B12: 0 | C12: 0 | D12: 0 | E12: 0 | F12: 0 | G12: 0 | H12: 2 | I12: 0 | J12: 0 | K12: 2 | L12: 6 | M12: 0 | N12: 0 | O12: 0 | P12: 6
A13: 2025-06-22 | B13: 0 | C13: 0 | D13: 0 | E13: 0 | F13: 0 | G13: 0 | H13: 74 | I13: 0 | J13: 0 | K13: 74 | L13: 32 | M13: 0 | N13: 0 | O13: 4 | P13: 36
A14: 2025-07-22 | B14: 0 | C14: 0 | D14: 0 | E14: 0 | F14: =SUM(B14:E14) -> 0 | G14: 1 | H14: 64 | I14: 0 | J14: 0 | K14: =SUM(G14:J14) -> 65 | L14: 19 | M14: 0 | N14: 0 | O14: 0 | P14: =SUM(L14:O14) -> 19
A15: 2025-08-22 | B15: 0 | C15: 0 | D15: 0 | E15: 0 | F15: =SUM(B15:E15) -> 0 | G15: 0 | H15: 0 | I15: 0 | J15: 0 | K15: =SUM(G15:J15) -> 0 | L15: 1 | M15: 0 | N15: 0 | O15: 0 | P15: =SUM(L15:O15) -> 1
A16: 2025-09-22 | B16: 0 | C16: 0 | D16: 0 | E16: 0 | F16: =SUM(B16:E16) -> 0 | G16: 0 | H16: 0 | I16: 0 | J16: 0 | K16: =SUM(G16:J16) -> 0 | L16: 1 | M16: 0 | N16: 0 | O16: 0 | P16: =SUM(L16:O16) -> 1
A18: Transfers to Storage - Volume
B19: FT-R (103m3/d) | G19: FT-D1 (GJ/d) | L19: FT-D2 (GJ/d)
A20: Month | B20: Approved (Manual) | C20: Approved (ATP) | D20: Denied | E20: Cancelled | F20: Total | G20: Approved (Manual) | H20: Approved (ATP) | I20: Denied | J20: Cancelled | K20: Total | L20: Approved (Manual) | M20: Approved (ATP) | N20: Denied | O20: Cancelled | P20: Total
A21: 2024-09-22 | B21: 1000 | C21: 0 | D21: 0 | E21: 0 | F21: =SUM(B21:E21) -> 1000 | G21: 0 | H21: 0 | I21: 0 | J21: 0 | K21: =SUM(G21:J21) -> 0 | L21: 1000 | M21: 0 | N21: 0 | O21: 0 | P21: =SUM(L21:O21) -> 1000
A22: 2024-10-22 | B22: 0 | C22: 0 | D22: 0 | E22: 0 | F22: 0 | G22: 0 | H22: 0 | I22: 0 | J22: 0 | K22: 0 | L22: 0 | M22: 0 | N22: 0 | O22: 0 | P22: 0
A23: 2024-11-22 | B23: 0 | C23: 1055 | D23: 0 | E23: 0 | F23: 1055 | G23: 0 | H23: 0 | I23: 0 | J23: 0 | K23: 0 | L23: 0 | M23: 0 | N23: 0 | O23: 0 | P23: 0
A24: 2024-12-22 | B24: 0 | C24: 0 | D24: 0 | E24: 0 | F24: 0 | G24: 0 | H24: 0 | I24: 0 | J24: 0 | K24: 0 | L24: 0 | M24: 0 | N24: 0 | O24: 0 | P24: 0
A25: 2025-01-22 | B25: 0 | C25: 11893 | D25: 0 | E25: 631 | F25: 12524 | G25: 0 | H25: 0 | I25: 0 | J25: 0 | K25: 0 | L25: 0 | M25: 0 | N25: 0 | O25: 0 | P25: 0
A26: 2025-02-22 | B26: 0 | C26: 6318 | D26: 0 | E26: 0 | F26: 6318 | G26: 0 | H26: 0 | I26: 0 | J26: 0 | K26: 0 | L26: 0 | M26: 0 | N26: 0 | O26: 0 | P26: 0
A27: 2025-03-22 | B27: 0 | C27: 247 | D27: 0 | E27: 0 | F27: 247 | G27: 0 | H27: 0 | I27: 0 | J27: 0 | K27: 0 | L27: 16000 | M27: 0 | N27: 0 | O27: 0 | P27: 16000
A28: 2025-04-22 | B28: 0 | C28: 0 | D28: 0 | E28: 0 | F28: =SUM(B28:E28) -> 0 | G28: 0 | H28: 0 | I28: 0 | J28: 0 | K28: 0 | L28: 1000 | M28: 0 | N28: 0 | O28: 0 | P28: =SUM(L28:O28) -> 1000
A29: 2025-05-22 | B29: 0 | C29: 0 | D29: 0 | E29: 0 | F29: =SUM(B29:E29) -> 0 | G29: 0 | H29: 37500 | I29: 0 | J29: 0 | K29: 37500 | L29: 34500 | M29: 0 | N29: 0 | O29: 0 | P29: =SUM(L29:O29) -> 34500
A30: 2025-06-22 | B30: 0 | C30: 0 | D30: 0 | E30: 0 | F30: 0 | G30: 0 | H30: 1339655 | I30: 0 | J30: 0 | K30: 1339655 | L30: 163750 | M30: 0 | N30: 0 | O30: 39020 | P30: 202770
A31: 2025-07-22 | B31: 0 | C31: 0 | D31: 0 | E31: 0 | G31: 144000 | H31: 1175874 | I31: 0 | J31: 0 | K31: =SUM(G31:J31) -> 1319874 | L31: 104400 | M31: 0 | N31: 0 | O31: 0 | P31: =SUM(L31:O31) -> 104400
A32: 2025-08-22 | B32: 0 | C32: 0 | D32: 0 | E32: 0 | G32: 0 | H32: 0 | I32: 0 | J32: 0 | K32: =SUM(G32:J32) -> 0 | L32: 1000 | M32: 0 | N32: 0 | O32: 0 | P32: =SUM(L32:O32) -> 1000
A33: 2025-09-22 | B33: 0 | C33: 0 | D33: 0 | E33: 0 | G33: 0 | H33: 0 | I33: 0 | J33: 0 | K33: =SUM(G33:J33) -> 0 | L33: 1000 | M33: 0 | N33: 0 | O33: 0 | P33: =SUM(L33:O33) -> 1000
A37: Cross Boundary Transfers
A38: Month | B38: Frequency | C38: Volume (e3m3/d) | D38: Information
A39: 2024-09-01 | B39: N/A | C39: N/A | D39: N/A
A40: 2024-10-01 | B40: N/A | C40: N/A | D40: N/A
A41: 2024-11-01 | B41: N/A | C41: N/A | D41: N/A
A42: 2024-12-01 | B42: N/A | C42: N/A | D42: N/A
A43: 2025-01-01 | B43: N/A | C43: N/A | D43: N/A
A44: 2025-02-01 | B44: N/A | C44: N/A | D44: N/A
A45: 2025-03-01 | B45: N/A | C45: N/A | D45: N/A
A46: 2025-04-01 | B46: N/A | C46: N/A | D46: N/A
A47: 2025-05-01 | B47: N/A | C47: N/A | D47: N/A
A48: 2025-06-01 | B48: N/A | C48: N/A | D48: N/A
A49: 2025-07-01 | B49: N/A | C49: N/A | D49: N/A
A50: 2025-08-01 | B50: N/A | C50: N/A | D50: N/A
A51: 2025-09-01 | B51: N/A | C51: N/A | D51: N/A
A53: Notes:
A54: 1. Values represent the total volume (GJ/d) of transfer requests processed in the specified month, regardless of effective date
A55: 2. Includes all "out and back" and "one-way" transfers
A56: 3. Out and back transfer requests are tallied as a single transaction
A57: 4. Transfers that cross a Delivery Design Area boundary are tallied in the area where the "To" location is situated
A58: 5. Cancelled transfer requests are initiated by the requester (customer, marketer etc.)
A59: 6. ATP is the acronym for Automated Transfer Process, requests that meet certain criteria may be approved automatically
A60: 7. Delivery Design Area boundaries are illustrated in the Design Methodology document on Customer Express (see NGTL/Regulatory/Facilities)
A61: http://www.tccustomerexpress.com/docs/ab_regulatory_facilities/Facilities%20Design%20Methodology%20Document%20-%20Revision%20May%2031,%202018_Oct%204.pdf
P72: 6
